Workbook

Sheet Ag Balance Sheet Graphical (hidden)
B12: Select Series to Graph | C12: =--C14 -> 1960 | D12: =--D14 -> 1961 | E12: 1962 | F12: 1963 | G12: 1964 | H12: 1965 | I12: 1966 | J12: 1967 | K12: 1968 | L12: 1969 | M12: 1970 | N12: 1971 | O12: 1972 | P12: 1973 | Q12: 1974 | R12: 1975 | S12: 1976 | T12: 1977 | U12: 1978 | V12: 1979 | W12: 1980 | X12: 1981 | Y12: 1982 | Z12: 1983 | AA12: 1984 | AB12: 1985 | AC12: 1986 | AD12: 1987 | AE12: 1988 | AF12: 1989 | AG12: 1990 | AH12: 1991 | AI12: 1992 | AJ12: 1993 | AK12: 1994 | AL12: 1995 | AM12: 1996 | AN12: 1997 | AO12: 1998 | AP12: 1999 | AQ12: 2000 | AR12: 2001 | AS12: 2002 | AT12: 2003 | AU12: 2004 | AV12: 2005 | AW12: 2006 | AX12: 2007 | AY12: 2008 | AZ12: 2009 | BA12: 2010 | BB12: 2011 | BC12: 2012 | BD12: 2013
B13: Number of Farms | C13: 2 | D13: 3 | E13: 4 | F13: 5 | G13: 6 | H13: 7 | I13: 8 | J13: 9 | K13: 10 | L13: 11 | M13: 12 | N13: 13 | O13: 14 | P13: 15 | Q13: 16 | R13: 17 | S13: 18 | T13: 19 | U13: 20 | V13: 21 | W13: 22 | X13: 23 | Y13: 24 | Z13: 25 | AA13: 26 | AB13: 27 | AC13: 28 | AD13: 29 | AE13: 30 | AF13: 31 | AG13: 32 | AH13: 33 | AI13: 34 | AJ13: 35 | AK13: 36 | AL13: 37 | AM13: 38 | AN13: 39 | AO13: 40 | AP13: 41 | AQ13: 42 | AR13: 43 | AS13: 44 | AT13: 45 | AU13: 46 | AV13: 47 | AW13: 48 | AX13: 49 | AY13: 50 | AZ13: 51 | BA13: 52 | BB13: 53 | BC13: 54 | BD13: 54
B14: Year | C14: 1960 | D14: 1961 | E14: 1962 | F14: 1963 | G14: 1964 | H14: 1965 | I14: 1966 | J14: 1967 | K14: 1968 | L14: 1969 | M14: 1970 | N14: 1971 | O14: 1972 | P14: 1973 | Q14: 1974 | R14: 1975 | S14: 1976 | T14: 1977 | U14: 1978 | V14: 1979 | W14: 1980 | X14: 1981 | Y14: 1982 | Z14: 1983 | AA14: 1984 | AB14: 1985 | AC14: 1986 | AD14: 1987 | AE14: 1988 | AF14: 1989 | AG14: 1990 | AH14: 1991 | AI14: 1992 | AJ14: 1993 | AK14: 1994 | AL14: 1995 | AM14: 1996 | AN14: 1997 | AO14: 1998 | AP14: 1999 | AQ14: 2000 | AR14: 2001 | AS14: 2002 | AT14: 2003 | AU14: 2004 | AV14: 2005 | AW14: 2006 | AX14: 2007 | AY14: 2008 | AZ14: 2009 | BA14: 2010 | BB14: 2011 | BC14: 2012 | BD14: 2013
B15: =B13 -> Number of Farms | C15: =IFERROR(--VLOOKUP($B$13,'US AG B-S Background Data'!$C$11:$BE$48,C13,0),"") -> 3962520 | D15: =IFERROR(--VLOOKUP($B$13,'US AG B-S Background Data'!$C$11:$BE$48,D13,0),"") -> 3825410 | E15: =IFERROR(--VLOOKUP($B$13,'US AG B-S Background Data'!$C$11:$BE$48,E13,0),"") -> 3692410 | F15: =IFERROR(--VLOOKUP($B$13,'US AG B-S Background Data'!$C$11:$BE$48,F13,0),"") -> 3572200 | G15: =IFERROR(--VLOOKUP($B$13,'US AG B-S Background Data'!$C$11:$BE$48,G13,0),"") -> 3456690 | H15: =IFERROR(--VLOOKUP($B$13,'US AG B-S Background Data'!$C$11:$BE$48,H13,0),"") -> 3356170 | I15: =IFERROR(--VLOOKUP($B$13,'US AG B-S Background Data'!$C$11:$BE$48,I13,0),"") -> 3257040 | J15: =IFERROR(--VLOOKUP($B$13,'US AG B-S Background Data'!$C$11:$BE$48,J13,0),"") -> 3161730 | K15: =IFERROR(--VLOOKUP($B$13,'US AG B-S Background Data'!$C$11:$BE$48,K13,0),"") -> 3070860 | L15: =IFERROR(--VLOOKUP($B$13,'US AG B-S Background Data'!$C$11:$BE$48,L13,0),"") -> 3000180 | M15: =IFERROR(--VLOOKUP($B$13,'US AG B-S Background Data'!$C$11:$BE$48,M13,0),"") -> 2949140 | N15: =IFERROR(--VLOOKUP($B$13,'US AG B-S Background Data'!$C$11:$BE$48,N13,0),"") -> 2902310 | O15: =IFERROR(--VLOOKUP($B$13,'US AG B-S Background Data'!$C$11:$BE$48,O13,0),"") -> 2859880 | P15: =IFERROR(--VLOOKUP($B$13,'US AG B-S Background Data'!$C$11:$BE$48,P13,0),"") -> 2823260 | Q15: =IFERROR(--VLOOKUP($B$13,'US AG B-S Background Data'!$C$11:$BE$48,Q13,0),"") -> 2795460 | R15: =IFERROR(--VLOOKUP($B$13,'US AG B-S Background Data'!$C$11:$BE$48,R13,0),"") -> 2521420 | S15: =IFERROR(--VLOOKUP($B$13,'US AG B-S Background Data'!$C$11:$BE$48,S13,0),"") -> 2497270 | T15: =IFERROR(--VLOOKUP($B$13,'US AG B-S Background Data'!$C$11:$BE$48,T13,0),"") -> 2455830 | U15: =IFERROR(--VLOOKUP($B$13,'US AG B-S Background Data'!$C$11:$BE$48,U13,0),"") -> 2436250 | V15: =IFERROR(--VLOOKUP($B$13,'US AG B-S Background Data'!$C$11:$BE$48,V13,0),"") -> 2437300 | W15: =IFERROR(--VLOOKUP($B$13,'US AG B-S Background Data'!$C$11:$BE$48,W13,0),"") -> 2439510 | X15: =IFERROR(--VLOOKUP($B$13,'US AG B-S Background Data'!$C$11:$BE$48,X13,0),"") -> 2439920 | Y15: =IFERROR(--VLOOKUP($B$13,'US AG B-S Background Data'!$C$11:$BE$48,Y13,0),"") -> 2406550 | Z15: =IFERROR(--VLOOKUP($B$13,'US AG B-S Background Data'!$C$11:$BE$48,Z13,0),"") -> 2378620 | AA15: =IFERROR(--VLOOKUP($B$13,'US AG B-S Background Data'!$C$11:$BE$48,AA13,0),"") -> 2333810 | AB15: =IFERROR(--VLOOKUP($B$13,'US AG B-S Background Data'!$C$11:$BE$48,AB13,0),"") -> 2292530 | AC15: =IFERROR(--VLOOKUP($B$13,'US AG B-S Background Data'!$C$11:$BE$48,AC13,0),"") -> 2249820 | AD15: =IFERROR(--VLOOKUP($B$13,'US AG B-S Background Data'!$C$11:$BE$48,AD13,0),"") -> 2212960 | AE15: =IFERROR(--VLOOKUP($B$13,'US AG B-S Background Data'!$C$11:$BE$48,AE13,0),"") -> 2200940 | AF15: =IFERROR(--VLOOKUP($B$13,'US AG B-S Background Data'!$C$11:$BE$48,AF13,0),"") -> 2174520 | AG15: =IFERROR(--VLOOKUP($B$13,'US AG B-S Background Data'!$C$11:$BE$48,AG13,0),"") -> 2145820 | AH15: =IFERROR(--VLOOKUP($B$13,'US AG B-S Background Data'!$C$11:$BE$48,AH13,0),"") -> 2116760 | AI15: =IFERROR(--VLOOKUP($B$13,'US AG B-S Background Data'!$C$11:$BE$48,AI13,0),"") -> 2107840 | AJ15: =IFERROR(--VLOOKUP($B$13,'US AG B-S Background Data'!$C$11:$BE$48,AJ13,0),"") -> 2201590 | AK15: =IFERROR(--VLOOKUP($B$13,'US AG B-S Background Data'!$C$11:$BE$48,AK13,0),"") -> 2197690 | AL15: =IFERROR(--VLOOKUP($B$13,'US AG B-S Background Data'!$C$11:$BE$48,AL13,0),"") -> 2196400 | AM15: =IFERROR(--VLOOKUP($B$13,'US AG B-S Background Data'!$C$11:$BE$48,AM13,0),"") -> 2190500 | AN15: =IFERROR(--VLOOKUP($B$13,'US AG B-S Background Data'!$C$11:$BE$48,AN13,0),"") -> 2190510 | AO15: =IFERROR(--VLOOKUP($B$13,'US AG B-S Background Data'!$C$11:$BE$48,AO13,0),"") -> 2192330 | AP15: =IFERROR(--VLOOKUP($B$13,'US AG B-S Background Data'!$C$11:$BE$48,AP13,0),"") -> 2187280 | AQ15: =IFERROR(--VLOOKUP($B$13,'US AG B-S Background Data'!$C$11:$BE$48,AQ13,0),"") -> 2166780 | AR15: =IFERROR(--VLOOKUP($B$13,'US AG B-S Background Data'!$C$11:$BE$48,AR13,0),"") -> 2148630 | AS15: =IFERROR(--VLOOKUP($B$13,'US AG B-S Background Data'!$C$11:$BE$48,AS13,0),"") -> 2135360 | AT15: =IFERROR(--VLOOKUP($B$13,'US AG B-S Background Data'!$C$11:$BE$48,AT13,0),"") -> 2126860 | AU15: =IFERROR(--VLOOKUP($B$13,'US AG B-S Background Data'!$C$11:$BE$48,AU13,0),"") -> 2112970 | AV15: =IFERROR(--VLOOKUP($B$13,'US AG B-S Background Data'!$C$11:$BE$48,AV13,0),"") -> 2098690 | AW15: =IFERROR(--VLOOKUP($B$13,'US AG B-S Background Data'!$C$11:$BE$48,AW13,0),"") -> 2088790 | AX15: =IFERROR(--VLOOKUP($B$13,'US AG B-S Background Data'!$C$11:$BE$48,AX13,0),"") -> 2204600 | AY15: =IFERROR(--VLOOKUP($B$13,'US AG B-S Background Data'!$C$11:$BE$48,AY13,0),"") -> 2184500 | AZ15: =IFERROR(--VLOOKUP($B$13,'US AG B-S Background Data'!$C$11:$BE$48,AZ13,0),"") -> 2169660 | BA15: =IFERROR(--VLOOKUP($B$13,'US AG B-S Background Data'!$C$11:$BE$48,BA13,0),"") -> 2149520 | BB15: =IFERROR(--VLOOKUP($B$13,'US AG B-S Background Data'!$C$11:$BE$48,BB13,0),"") -> 2131240 | BC15: =IFERROR(--VLOOKUP($B$13,'US AG B-S Background Data'!$C$11:$BE$48,BC13,0),"") -> 2109810 | BD15: =IFERROR(--VLOOKUP($B$13,'US AG B-S Background Data'!$C$11:$BE$48,BD13,0),"") -> 2109810

Sheet US AG B-S Background Data
C3: Table 1--Farm business balance sheet, 1960-2023f
C5: United States
C7: Year | D7: 1960 | E7: 1961 | F7: 1962 | G7: 1963 | H7: 1964 | I7: 1965 | J7: 1966 | K7: 1967 | L7: 1968 | M7: 1969 | N7: 1970 | O7: 1971 | P7: 1972 | Q7: 1973 | R7: 1974 | S7: 1975 | T7: 1976 | U7: 1977 | V7: 1978 | W7: 1979 | X7: 1980 | Y7: 1981 | Z7: 1982 | AA7: 1983 | AB7: 1984 | AC7: 1985 | AD7: 1986 | AE7: 1987 | AF7: 1988 | AG7: 1989 | AH7: 1990 | AI7: 1991 | AJ7: 1992 | AK7: 1993 | AL7: 1994 | AM7: 1995 | AN7: 1996 | AO7: 1997 | AP7: 1998 | AQ7: 1999 | AR7: 2000 | AS7: 2001 | AT7: 2002 | AU7: 2003 | AV7: 2004 | AW7: 2005 | AX7: 2006 | AY7: 2007 | AZ7: 2008 | BA7: 2009 | BB7: 2010 | BC7: 2011 | BD7: 2012 | BE7: 2013 | BF7: 2014 | BG7: 2015 | BH7: 2016 | BI7: 2017 | BJ7: 2018 | BK7: 2019 | BL7: 2020 | BM7: 2021 | BN7: 2022 | BO7: 2023
H9: Numbers | R9: Numbers | AB9: Numbers | AL9: Numbers
C11: Number of Farms | D11: 3962520 | E11: 3825410 | F11: 3692410 | G11: 3572200 | H11: 3456690 | I11: 3356170 | J11: 3257040 | K11: 3161730 | L11: 3070860 | M11: 3000180 | N11: 2949140 | O11: 2902310 | P11: 2859880 | Q11: 2823260 | R11: 2795460 | S11: 2521420 | T11: 2497270 | U11: 2455830 | V11: 2436250 | W11: 2437300 | X11: 2439510 | Y11: 2439920 | Z11: 2406550 | AA11: 2378620 | AB11: 2333810 | AC11: 2292530 | AD11: 2249820 | AE11: 2212960 | AF11: 2200940 | AG11: 2174520 | AH11: 2145820 | AI11: 2116760 | AJ11: 2107840 | AK11: 2201590 | AL11: 2197690 | AM11: 2196400 | AN11: 2190500 | AO11: 2190510 | AP11: 2192330 | AQ11: 2187280 | AR11: 2166780 | AS11: 2148630 | AT11: 2135360 | AU11: 2126860 | AV11: 2112970 | AW11: 2098690 | AX11: 2088790 | AY11: 2204600 | AZ11: 2184500 | BA11: 2169660 | BB11: 2149520 | BC11: 2131240 | BD11: 2109810 | BE11: 2102010 | BF11: 2082440 | BG11: 2063890 | BH11: 2052261 | BI11: 2033724 | BJ11: 2020919 | BK11: 2015068 | BL11: 2010664 | BM11: 2003754 | BN11: 1,988,288(f) | BO11: not available
H12: Thousand dollars | R12: Thousand dollars | AB12: Thousand dollars | AL12: Thousand dollars
C13: Farm assets | D13: 174350138 | E13: 181631733 | F13: 188870449 | G13: 196695336 | H13: 204238278 | I13: 220817624 | J13: 234022906 | K13: 246072706 | L13: 257160621 | M13: 267822833 | N13: 278823015 | O13: 301760581 | P13: 339933247 | Q13: 418493949 | R13: 449181770 | S13: 510786259 | T13: 590716642 | U13: 651508183 | V13: 777744402 | W13: 914682365 | X13: 1000422127 | Y13: 997897469 | Z13: 962488416 | AA13: 959300462 | AB13: 897811233 | AC13: 775907905 | AD13: 722017259 | AE13: 756478652 | AF13: 788525662 | AG13: 813731058 | AH13: 840608505 | AI13: 844167552 | AJ13: 867762818 | AK13: 909174821 | AL13: 934724297 | AM13: 965741060 | AN13: 1002916227 | AO13: 1051280908 | AP13: 1083354897 | AQ13: 1138826915 | AR13: 1203214765 | AS13: 1255926409 | AT13: 1250530486 | AU13: 1322433781 | AV13: 1491953134 | AW13: 1709371086 | AX13: 1906665033 | AY13: 1961943172 | AZ13: 2005861900 | BA13: 1976913105 | BB13: 2170832085 | BC13: 2318720178 | BD13: 2638246236 | BE13: 2767754249 | BF13: 2930596397 | BG13: 2880014647 | BH13: 2914440909 | BI13: 3005944863 | BJ13: 3026678682 | BK13: 3075148145 | BL13: 3174623195 | BM13: 3497614240 | BN13: 3848184726 | BO13: 4047027328
C14: Real estate | D14: 123280105 | E14: 129097425 | F14: 134614477 | G14: 142353253 | H14: 150485891 | I14: 161524641 | J14: 171233350 | K14: 180942601 | L14: 189388755 | M14: 195309483 | N14: 202418081 | O14: 217562382 | P14: 243002153 | Q14: 298300207 | R14: 335556227 | S14: 383559733 | T14: 456539435 | U14: 509308292 | V14: 601773349 | W14: 706063787 | X14: 782820207 | Y14: 785561830 | Z14: 750023254 | AA14: 753422019 | AB14: 661750215 | AC14: 586183371 | AD14: 542407976 | AE14: 563678551 | AF14: 582311234 | AG14: 600132424 | AH14: 619149240 | AI14: 624769057 | AJ14: 640790780 | AK14: 677577858 | AL14: 704137650 | AM14: 740491453 | AN14: 769535891 | AO14: 808228878 | AP14: 840421562 | AQ14: 886981055 | AR14: 946427649 | AS14: 996242486 | AT14: 1003708881 | AU14: 1016350076 | AV14: 1161561634 | AW14: 1372626160 | AX14: 1536641152 | AY14: 1548985369 | AZ14: 1568551418 | BA14: 1560555911 | BB14: 1660113798 | BC14: 1802702005 | BD14: 2073664481 | BE14: 2251001916 | BF14: 2383150407 | BG14: 2365717294 | BH14: 2401352455 | BI14: 2472843963 | BJ14: 2510163458 | BK14: 2545995513 | BL14: 2640942455 | BM14: 2895998249 | BN14: 3188219412 | BO14: 3389550688
C15: Livestock and poultry | D15: 15607597 | E15: 16428026 | F15: 17306979 | G15: 15864578 | H15: 14469305 | I15: 17584671 | J15: 18973530 | K15: 18845528 | L15: 20249055 | M15: 22838634 | N15: 23705761 | O15: 27263869 | P15: 33679316 | Q15: 42370002 | R15: 24567475 | S15: 29356695 | T15: 29047508 | U15: 31931218 | V15: 50105786 | W15: 61386773 | X15: 60633203 | Y15: 53544275 | Z15: 52993051 | AA15: 49540878 | AB15: 49525922 | AC15: 46259169 | AD15: 47751409 | AE15: 57976580 | AF15: 62211338 | AG15: 66212752 | AH15: 70856057 | AI15: 68119760 | AJ15: 70962162 | AK15: 72778679 | AL15: 67912189 | AM15: 57778086 | AN15: 60314851 | AO15: 67075193 | AP15: 63391480 | AQ15: 73177382 | AR15: 76787712 | AS15: 78535901 | AT15: 67877550 | AU15: 74506996 | AV15: 83334116 | AW15: 87758593 | AX15: 86698438 | AY15: 89358661 | AZ15: 86198460 | BA15: 80267748 | BB15: 90715139 | BC15: 101446630 | BD15: 95743147 | BE15: 110836501 | BF15: 127852850 | BG15: 118183719 | BH15: 108996528 | BI15: 107085709 | BJ15: 97131860 | BK15: 99159424 | BL15: 98288022 | BM15: 104112399 | BN15: 132301505 | BO15: 125476823
C16: Machinery and motor vehicles | D16: 19068447 | E16: 19270293 | F16: 19902285 | G16: 20372604 | H16: 21247171 | I16: 22428938 | J16: 24067400 | K16: 26310099 | L16: 27744429 | M16: 28634424 | N16: 30363934 | O16: 32434438 | P16: 34644365 | Q16: 39670896 | R16: 48454284 | S16: 57417012 | T16: 63275288 | U16: 69319935 | V16: 78837918 | W16: 91924442 | X16: 97463497 | Y16: 101121601 | Z16: 103853547 | AA16: 101707294 | AB16: 125844857 | AC16: 86076967 | AD16: 79030185 | AE16: 78686237 | AF16: 80976113 | AG16: 84090265 | AH16: 86297804 | AI16: 85892466 | AJ16: 84805549 | AK16: 85391600 | AL16: 86761586 | AM16: 87591746 | AN16: 88030611 | AO16: 88744926 | AP16: 89824706 | AQ16: 89847429 | AR16: 90104683 | AS16: 92804006 | AT16: 136624880 | AU16: 137871242 | AV16: 149334862 | AW16: 144343034 | AX16: 155337507 | AY16: 194783471 | AZ16: 189086640 | BA16: 191600286 | BB16: 207604913 | BC16: 223814646 | BD16: 243966688 | BE16: 247342759 | BF16: 245724348 | BG16: 239513055 | BH16: 255448333 | BI16: 272297744 | BJ16: 270982438 | BK16: 278991092 | BL16: 278809005 | BM16: 308335490 | BN16: 322698486 | BO16: 337840893
C17: Crops | D17: 6359991 | E17: 6471987 | F17: 6527710 | G17: 7408814 | H17: 7012635 | I17: 7892957 | J17: 8107008 | K17: 8016152 | L17: 7393262 | M17: 8278635 | N17: 8700574 | O17: 9950744 | P17: 12949001 | Q17: 21379362 | R17: 22515224 | S17: 20535165 | T17: 20584873 | U17: 20443929 | V17: 23800687 | W17: 29876331 | X17: 32831043 | Y17: 29511813 | Z17: 25885600 | AA17: 23746340 | AB17: 26128956 | AC17: 22904647 | AD17: 16279821 | AE17: 17828174 | AF17: 23651022 | AG17: 23936470 | AH17: 23178199 | AI17: 22238486 | AJ17: 24208624 | AK17: 23325867 | AL17: 23297793 | AM17: 27445606 | AN17: 31692878 | AO17: 32670319 | AP17: 29939741 | AQ17: 28273037 | AR17: 27932428 | AS17: 25238556 | AT17: 11699174 | AU17: 26693037 | AV17: 29607523 | AW17: 33402678 | AX17: 41144457 | AY17: 54231798 | AZ17: 58759139 | BA17: 53423542 | BB17: 57218624 | BC17: 62461649 | BD17: 64766997 | BE17: 60458074 | BF17: 61724815 | BG17: 52541035 | BH17: 55681505 | BI17: 56796131 | BJ17: 59725123 | BK17: 49594861 | BL17: 50552962 | BM17: 58135730 | BN17: 52532417 | BO17: 48984785
C18: Purchased inputs | AB18: 1977708 | AC18: 1209904 | AD18: 2067459 | AE18: 3152585 | AF18: 3459088 | AG18: 2574449 | AH18: 2807529 | AI18: 2610686 | AJ18: 3946496 | AK18: 3789676 | AL18: 5036672 | AM18: 3371612 | AN18: 4361892 | AO18: 4900371 | AP18: 5036405 | AQ18: 4025649 | AR18: 4895715 | AS18: 4212374 | AT18: 11213419 | AU18: 9478695 | AV18: 10494785 | AW18: 10735654 | AX18: 11744226 | AY18: 15953866 | AZ18: 19499249 | BA18: 18749862 | BB18: 19836910 | BC18: 20985068 | BD18: 21460770 | BE18: 20577855 | BF18: 20100471 | BG18: 16398086 | BH18: 14881507 | BI18: 15791469 | BJ18: 16092337 | BK18: 13927346 | BL18: 14017731 | BM18: 18316363 | BN18: 19684039 | BO18: 20741153
C19: Financial | D19: 10033998 | E19: 10364002 | F19: 10518998 | G19: 10696087 | H19: 11023276 | I19: 11386417 | J19: 11641618 | K19: 11958326 | L19: 12385120 | M19: 12761657 | N19: 13634665 | O19: 14549148 | P19: 15658412 | Q19: 16773482 | R19: 18088560 | S19: 19917653 | T19: 21269538 | U19: 20504809 | V19: 23226663 | W19: 25431031 | X19: 26674177 | Y19: 28157950 | Z19: 29732964 | AA19: 30883931 | AB19: 32583575 | AC19: 33273848 | AD19: 34480410 | AE19: 35156525 | AF19: 35916867 | AG19: 36784698 | AH19: 38319676 | AI19: 40537097 | AJ19: 43049207 | AK19: 46311141 | AL19: 47578407 | AM19: 49062556 | AN19: 48980104 | AO19: 49661221 | AP19: 54741003 | AQ19: 56522362 | AR19: 57066578 | AS19: 58893086 | AT19: 19406583 | AU19: 57533735 | AV19: 57620214 | AW19: 60504967 | AX19: 75099252 | AY19: 58630007 | AZ19: 83766993 | BA19: 72315756 | BB19: 135342700 | BC19: 107310180 | BD19: 138635115 | BE19: 85892484 | BF19: 110685576 | BG19: 87661457 | BH19: 78080582 | BI19: 81129847 | BJ19: 72583465 | BK19: 87479909 | BL19: 92013020 | BM19: 112716009 | BN19: 132748868 | BO19: 124432986
C22: Farm debt | D22: 22445666 | E22: 24138318 | F22: 26665409 | G22: 29560942 | H22: 32157241 | I22: 35810786 | J22: 39223095 | K22: 42206120 | L22: 43921577 | M22: 46420826 | N22: 48501007 | O22: 52825068 | P22: 58099688 | Q22: 66768652 | R22: 74672687 | S22: 83503739 | T22: 94137390 | U22: 108404445 | V22: 123865621 | W22: 147520227 | X22: 162431968 | Y22: 177687478 | Z22: 183962996 | AA22: 186178117 | AB22: 188813336 | AC22: 172154536 | AD22: 151307822 | AE22: 138507402 | AF22: 133138349 | AG22: 131030402 | AH22: 131115795 | AI22: 131872783 | AJ22: 131565813 | AK22: 134311580 | AL22: 138929055 | AM22: 142985255 | AN22: 148572756 | AO22: 156907377 | AP22: 164626313 | AQ22: 167696145 | AR22: 163929823 | AS22: 170664446 | AT22: 187029013 | AU22: 181095940 | AV22: 197577630 | AW22: 209073394 | AX22: 215684913 | AY22: 240735957 | AZ22: 261063115 | BA22: 268346578 | BB22: 278930534 | BC22: 294472133 | BD22: 297521123 | BE22: 315332488 | BF22: 345201354 | BG22: 356738041 | BH22: 374164212 | BI22: 390425223 | BJ22: 402605504 | BK22: 420494800 | BL22: 441253793 | BM22: 474115801 | BN22: 503894666 | BO22: 535085785
C23: Real estate | D23: 11309593 | E23: 12318392 | F23: 13488450 | G23: 14981360 | H23: 16850311 | I23: 18915889 | J23: 20696043 | K23: 22613532 | L23: 24729257 | M23: 26415866 | N23: 27238348 | O23: 28826497 | P23: 31379625 | Q23: 35188298 | R23: 39563003 | S23: 43750962 | T23: 48484701 | U23: 55834463 | V23: 63424623 | W23: 75778090 | X23: 85272367 | Y23: 93905270 | Z23: 96769083 | AA23: 98071338 | AB23: 101393312 | AC23: 94089977 | AD23: 84087662 | AE23: 75809859 | AF23: 70829423 | AG23: 68761420 | AH23: 67632973 | AI23: 67449880 | AJ23: 67879337 | AK23: 68432731 | AL23: 69911852 | AM23: 71722937 | AN23: 74422235 | AO23: 78513555 | AP23: 83100263 | AQ23: 87206087 | AR23: 84723763 | AS23: 88541011 | AT23: 98118184 | AU23: 97396385 | AV23: 104161951 | AW23: 113886209 | AX23: 113365478 | AY23: 131710955 | AZ23: 147901855 | BA23: 145979853 | BB23: 154065225 | BC23: 167190768 | BD23: 173368636 | BE23: 185160530 | BF23: 196780224 | BG23: 208769246 | BH23: 225980433 | BI23: 236243057 | BJ23: 245773538 | BK23: 267943655 | BL23: 288645325 | BM23: 324257298 | BN23: 349067861 | BO23: 375860118
C24: Farm Credit System | D24: 2222301 | E24: 2462512 | F24: 2666963 | G24: 2905293 | H24: 3266651 | I24: 3766421 | J24: 4388901 | K24: 4970937 | L24: 5433762 | M24: 5976804 | N24: 6368922 | O24: 7000181 | P24: 8014159 | Q24: 9616844 | R24: 11839517 | S24: 14043688 | T24: 16223152 | U24: 18771473 | V24: 21566850 | W24: 25969746 | X24: 31575578 | Y24: 38293671 | Z24: 41493247 | AA24: 42124283 | AB24: 44266085 | AC24: 39638435 | AD24: 33101061 | AE24: 28194451 | AF24: 25885360 | AG24: 24340814 | AH24: 23461664 | AI24: 22774771 | AJ24: 22866792 | AK24: 22409618 | AL24: 22137036 | AM24: 22480484 | AN24: 23450202 | AO24: 24924671 | AP24: 26787599 | AQ24: 28044751 | AR24: 29692046 | AS24: 32854687 | AT24: 37815366 | AU24: 33207011 | AV24: 37077836 | AW24: 47867156 | AX24: 49693789 | AY24: 57823752 | AZ24: 62837632 | BA24: 69074445 | BB24: 72478528 | BC24: 75287498 | BD24: 80343753 | BE24: 85250722 | BF24: 88797518 | BG24: 96662553 | BH24: 103749537 | BI24: 107185861 | BJ24: 113029319 | BK24: 125191612 | BL24: 140511285 | BM24: 158077520 | BN24: =BM24/$BM$23*$BN$23 -> 170172829.2 | BO24: =BN24/$BN$23*$BO$23 -> 183234226.9
C25: Farm Service Agency | D25: 623895 | E25: 822065 | F25: 921154 | G25: 1024496 | H25: 1125457 | I25: 1314537 | J25: 1467783 | K25: 1636188 | L25: 1824883 | M25: 2028788 | N25: 2168992 | O25: 2319457 | P25: 2505520 | Q25: 2653508 | R25: 2821357 | S25: 2946795 | T25: 3189606 | U25: 3462207 | V25: 3571420 | W25: 5967133 | X25: 7094800 | Y25: 7726319 | Z25: 7922736 | AA25: 8186795 | AB25: 9046439 | AC25: 9231655 | AD25: 9033182 | AE25: 8675678 | AF25: 8171569 | AG25: 7423909 | AH25: 6913726 | AI25: 6336758 | AJ25: 5755007 | AK25: 5253647 | AL25: 4918556 | AM25: 4572770 | AN25: 4285372 | AO25: 4021975 | AP25: 3777265 | AQ25: 3583694 | AR25: 3418223 | AS25: 3347374 | AT25: 3181000 | AU25: 2178000 | AV25: 2396000 | AW25: 2453000 | AX25: 2374000 | AY25: 2555846 | AZ25: 2464998 | BA25: 2637349 | BB25: 3475437 | BC25: 3334494 | BD25: 3743238 | BE25: 3717074 | BF25: 4325689 | BG25: 4857770 | BH25: 5914514 | BI25: 6027783 | BJ25: 6620659 | BK25: 7988597 | BL25: 9290216 | BM25: 10625423 | BN25: =BM25/$BM$23*$BN$23 -> 11438427.76 | BO25: 12316369.65
C26: Farmer Mac | AT26: 325693 | AU26: 915788 | AV26: 862208 | AW26: 770356 | AX26: 1454272 | AY26: 2829805 | AZ26: 2427239 | BA26: 2069175 | BB26: 3600592 | BC26: 3770165 | BD26: 3811537 | BE26: 4481629 | BF26: 4728807 | BG26: 4843551 | BH26: 5456587 | BI26: 6238970 | BJ26: 6544168 | BK26: 7642490 | BL26: 8668575 | BM26: 9543867 | BN26: 10274116.45 | BO26: 11062693.11
C27: Commercial banks | D27: 1355733 | E27: 1401691 | F27: 1606938 | G27: 1844126 | H27: 2090051 | I27: 2259905 | J27: 2418179 | K27: 2676543 | L27: 2918582 | M27: 3115947 | N27: 3333945 | O27: 3716254 | P27: 4207609 | Q27: 4774637 | R27: 5204225 | S27: 5475971 | T27: 5884076 | U27: 6734576 | V27: 7388580 | W27: 7463130 | X27: 7430446 | Y27: 7252783 | Z27: 7238966 | AA27: 7979692 | AB27: 9145059 | AC27: 10087966 | AD27: 11106298 | AE27: 12458128 | AF27: 13134654 | AG27: 14195364 | AH27: 14740757 | AI27: 15674874 | AJ27: 16881167 | AK27: 17635101 | AL27: 18971234 | AM27: 20151323 | AN27: 21213695 | AO27: 23215498 | AP27: 25193180 | AQ27: 27578839 | AR27: 29756973 | AS27: 31082102 | AT27: 30421980 | AU27: 31980000 | AV27: 34891305 | AW27: 37166558 | AX27: 37455038 | AY27: 41061877 | AZ27: 46395506 | BA27: 44244248 | BB27: 51227807 | BC27: 52946233 | BD27: 64559493 | BE27: 68903134 | BF27: 73254162 | BG27: 79163795 | BH27: 84417512 | BI27: 88358378 | BJ27: 92942507 | BK27: 97876732 | BL27: 96848828 | BM27: 100815321 | BN27: 108529210.2 | BO27: 116859230.9
C28: Life insurance companies | D28: 2651587 | E28: 2828152 | F28: 3043385 | G28: 3405403 | H28: 3865756 | I28: 4339266 | J28: 4727763 | K28: 5034086 | L28: 5235614 | M28: 5222116 | N28: 5038804 | O28: 4980919 | P28: 5035955 | Q28: 5304091 | R28: 5581876 | S28: 5938785 | T28: 6511942 | U28: 7735190 | V28: 9160409 | W28: 10654407 | X28: 11337301 | Y28: 11482287 | Z28: 11171688 | AA28: 11016282 | AB28: 11296552 | AC28: 10596325 | AD28: 9650671 | AE28: 8606627 | AF28: 8225845 | AG28: 8247377 | AH28: 8782095 | AI28: 8591225 | AJ28: 7888515 | AK28: 8086943 | AL28: 8122623 | AM28: 8224581 | AN28: 8629197 | AO28: 8920956 | AP28: 9943629 | AQ28: 10633978 | AR28: 11053300 | AS28: 11205391 | AT28: 11421000 | AU28: 10026000 | AV28: 10726000 | AW28: 11307000 | AX28: 12001000 | AY28: 10806203 | AZ28: 13737226 | BA28: 13291178 | BB28: 12436849 | BC28: 13003744 | BD28: 11487490 | BE28: 11977097 | BF28: 12403795 | BG28: 12527497 | BH28: 13204121 | BI28: 15041430 | BJ28: 15855677 | BK28: 17814130 | BL28: 19182610 | BM28: 21108554 | BN28: 22723676.04 | BO28: 24467802.72
C29: Individuals and others | D29: 4408545 | E29: 4734961 | F29: 5176176 | G29: 5742101 | H29: 6458587 | I29: 7201849 | J29: 7660952 | K29: 8234921 | L29: 9169138 | M29: 9902199 | N29: 10181409 | O29: 10619908 | P29: 11350228 | Q29: 12561253 | R29: 13899119 | S29: 15175336 | T29: 16532391 | U29: 18639262 | V29: 20589756 | W29: 24332811 | X29: 26377883 | Y29: 27808051 | Z29: 27815219 | AA29: 27876341 | AB29: 27016085 | AC29: 24228530 | AD29: 21073725 | AE29: 17829262 | AF29: 15391379 | AG29: 14542381 | AH29: 13728224 | AI29: 14068465 | AJ29: 14485871 | AK29: 15047423 | AL29: 15762403 | AM29: 16293778 | AN29: 16843769 | AO29: 17430456 | AP29: 17398591 | AQ29: 17364826 | AR29: 10803221 | AS29: 10051456 | AT29: 14953145 | AU29: 18893637 | AV29: 17982825 | AW29: 14072424 | AX29: 10115426 | AY29: 16286248 | AZ29: 19648041 | BA29: 14190626 | BB29: 10211729 | BC29: 18126226 | BD29: 8689061 | BE29: 10084246 | BF29: 12517927 | BG29: 9956273 | BH29: 12494207 | BI29: 12621457 | BJ29: 9946574 | BK29: 10567719 | BL29: 13181494 | BM29: 22988761 | BN29: 24747747.17 | BO29: 26647228.84
C30: CCC storage & drying loans | D30: 47523 | E30: 69006 | F30: 73829 | G30: 59932 | H30: 43809 | I30: 33915 | J30: 32456 | K30: 60850 | L30: 147276 | M30: 170016 | N30: 146276 | O30: 189778 | P30: 266154 | Q30: 277965 | R30: 216909 | S30: 170387 | T30: 143534 | U30: 491755 | V30: 1147608 | W30: 1390863 | X30: 1456359 | Y30: 1342159 | Z30: 1127227 | AA30: 887945 | AB30: 623093 | AC30: 307067 | AD30: 122725 | AE30: 45713 | AF30: 20616 | AG30: 11575 | AH30: 6506 | AI30: 3786 | AJ30: 1984 | AK30: NA | AL30: NA | AM30: NA | AN30: NA | AO30: NA | AP30: NA | AQ30: NA | AR30: NA | AS30: NA | AT30: NA | AU30: 195950 | AV30: 225778 | AW30: 249715 | AX30: 271954 | AY30: 347224 | AZ30: 391213 | BA30: 472831 | BB30: 634283 | BC30: 722409 | BD30: 734065 | BE30: 746627 | BF30: 752327 | BG30: 757809 | BH30: 743955 | BI30: 769178 | BJ30: 834632 | BK30: 862374 | BL30: 962317 | BM30: 1097852 | BN30: 1181854.199 | BO30: =BN30/$BN$23*$BO$23 -> 1272565.906
C32: Nonreal estate | D32: 11136073 | E32: 11819926 | F32: 13176959 | G32: 14579582 | H32: 15306930 | I32: 16894897 | J32: 18527052 | K32: 19592588 | L32: 19192320 | M32: 20004960 | N32: 21262659 | O32: 23998571 | P32: 26720062 | Q32: 31580354 | R32: 35109684 | S32: 39752777 | T32: 45652689 | U32: 52569982 | V32: 60440998 | W32: 71742137 | X32: 77159601 | Y32: 83782208 | Z32: 87193913 | AA32: 88106779 | AB32: 87420023 | AC32: 78064559 | AD32: 67220161 | AE32: 62697543 | AF32: 62308927 | AG32: 62268982 | AH32: 63482823 | AI32: 64422903 | AJ32: 63686475 | AK32: 65878849 | AL32: 69017203 | AM32: 71262319 | AN32: 74150521 | AO32: 78393822 | AP32: 81526050 | AQ32: 80490057 | AR32: 79206060 | AS32: 82123435 | AT32: 88910829 | AU32: 83699555 | AV32: 93415679 | AW32: 95187185 | AX32: 102319434 | AY32: 109025002 | AZ32: 113161260 | BA32: 122366725 | BB32: 124865309 | BC32: 127281365 | BD32: 124152487 | BE32: 130171958 | BF32: 148421130 | BG32: 147968795 | BH32: 148183780 | BI32: 154182166 | BJ32: 156831966 | BK32: 152551145 | BL32: 152608468 | BM32: 149858504 | BN32: 154826805 | BO32: 159225667
C33: Farm Credit System | D33: 1509061 | E33: 1673393 | F33: 1868097 | G33: 2146954 | H33: 2311117 | I33: 2615293 | J33: 3051943 | K33: 3553601 | L33: 3852970 | M33: 4532871 | N33: 5303116 | O33: 6070545 | P33: 6591759 | Q33: 7827546 | R33: 9515860 | S33: 10680641 | T33: 12115639 | U33: 13338805 | V33: 14707824 | W33: 17842439 | X33: 19511718 | Y33: 21010020 | Z33: 20309620 | AA33: 19156137 | AB33: 17868609 | AC33: 13833717 | AD33: 10198209 | AE33: 9279862 | AF33: 8674622 | AG33: 9444862 | AH33: 9745477 | AI33: 10115291 | AJ33: 10237792 | AK33: 10429835 | AL33: 11063985 | AM33: 12342519 | AN33: 13877867 | AO33: 14844151 | AP33: 16382637 | AQ33: 15509734 | AR33: 16687385 | AS33: 20000000 | AT33: 20491000 | AU33: 20167247 | AV33: 22040316 | AW33: 24052920 | AX33: 26965061 | AY33: 31421824 | AZ33: 36023495 | BA33: 38986948 | BB33: 39230652 | BC33: 41085284 | BD33: 42679741 | BE33: 44015862 | BF33: 47887186 | BG33: 48283041 | BH33: 49376260 | BI33: 51129210 | BJ33: 53387956 | BK33: 52951543 | BL33: 55301307 | BM33: 56596548 | BN33: =BM33/$BM$32*$BN$32 -> 58472909.22 | BO33: =BN33/$BN$32*$BO$32 -> 60134212.37
C34: Farm Service Agency | D34: 369168 | E34: 436551 | F34: 489448 | G34: 522531 | H34: 566642 | I34: 630978 | J34: 648961 | K34: 702280 | L34: 723062 | M34: 690893 | N34: 715373 | O34: 697695 | P34: 710248 | Q34: 802512 | R34: 960889 | S34: 1639435 | T34: 1745859 | U34: 2937219 | V34: 5433200 | W34: 8792794 | X34: 10827139 | Y34: 13716495 | Z34: 14008779 | AA34: 13877781 | AB34: 14832430 | AC34: 15884319 | AD34: 15572185 | AE34: 15246835 | AF34: 13925583 | AG34: 11705845 | AH34: 10119848 | AI34: 8865776 | AJ34: 7711693 | AK34: 6735161 | AL34: 6498477 | AM34: 5496596 | AN34: 4983948 | AO34: 4549888 | AP34: 4245007 | AQ34: 4263493 | AR34: 4208278 | AS34: 4150979 | AT34: 3973000 | AU34: 3646000 | AV34: 3244000 | AW34: 3008000 | AX34: 2734000 | AY34: 3117195 | AZ34: 2972189 | BA34: 3344724 | BB34: 3642459 | BC34: 3545409 | BD34: 3355025 | BE34: 2836595 | BF34: 3550210 | BG34: 3748543 | BH34: 3783890 | BI34: 3959372 | BJ34: 3892902 | BK34: 3809969 | BL34: 3678478 | BM34: 3364964 | BN34: =BM34/$BM$32*$BN$32 -> 3476523.595 | BO34: 3575296.85
C35: Commercial banks | D35: 4716945 | E35: 5023481 | F35: 5650609 | G35: 6286305 | H35: 6605571 | I35: 7254628 | J35: 8064148 | K35: 8761610 | L35: 9185089 | M35: 9761598 | N35: 10491171 | O35: 11810931 | P35: 13527275 | Q35: 16222596 | R35: 17234913 | S35: 19050762 | T35: 22001974 | U35: 24294841 | V35: 26717825 | W35: 29327405 | X35: 29985795 | Y35: 31214694 | Z35: 34322015 | AA35: 37075109 | AB35: 37618984 | AC35: 33737631 | AD35: 29678316 | AE35: 27588797 | AF35: 28308722 | AG35: 29243276 | AH35: 31267500 | AI35: 32854335 | AJ35: 32911989 | AK35: 34938855 | AL35: 36729740 | AM35: 37748207 | AN35: 38368022 | AO35: 41049702 | AP35: 42188408 | AQ35: 41351980 | AR35: 44854281 | AS35: 45025160 | AT35: 44752500 | AU35: 44479303 | AV35: 46544934 | AW35: 48650364 | AX35: 48372335 | AY35: 54001860 | AZ35: 56307741 | BA35: 57155563 | BB35: 56176988 | BC35: 59189718 | BD35: 59878041 | BE35: 63720321 | BF35: 70737959 | BG35: 73177901 | BH35: 73233553 | BI35: 73307370 | BJ35: 75375051 | BK35: 71125036 | BL35: 63116253 | BM35: 65084336 | BN35: 67242095.24 | BO35: 69152544.13
C36: Individuals and others | D36: 4540901 | E36: 4686498 | F36: 5168802 | G36: 5623796 | H36: 5823604 | I36: 6393999 | J36: 6762001 | K36: 6575100 | L36: 5431198 | M36: 5019600 | N36: 4752999 | O36: 5419400 | P36: 5890780 | Q36: 6727700 | R36: 7398021 | S36: 8381940 | T36: 9789217 | U36: 11999118 | V36: 13582149 | W36: 15779499 | X36: 16834950 | Y36: 17840998 | Z36: 18553499 | AA36: 17997751 | AB36: 17100000 | AC36: 14608892 | AD36: 11771450 | AE36: 10582049 | AF36: 11400000 | AG36: 11874999 | AH36: 12349997 | AI36: 12587500 | AJ36: 12825001 | AK36: 13774998 | AL36: 14725001 | AM36: 15674997 | AN36: 16920683 | AO36: 17950081 | AP36: 18709998 | AQ36: 19364850 | AR36: 13456116 | AS36: 12947295 | AT36: 19694329 | AU36: 15407005 | AV36: 21586429 | AW36: 19475901 | AX36: 24248038 | AY36: 20484123 | AZ36: 17857835 | BA36: 22879490 | BB36: 25815210 | BC36: 23460955 | BD36: 18239680 | BE36: 19599180 | BF36: 26245776 | BG36: 22759310 | BH36: 21790077 | BI36: 25786214 | BJ36: 24176057 | BK36: 24664597 | BL36: 30512430 | BM36: 24812656 | BN36: 25635276.94 | BO36: =BN36/$BN$32*$BO$32 -> 26363613.65
C37: Year | D37: 1960 | E37: 1961 | F37: 1962 | G37: 1963 | H37: 1964 | I37: 1965 | J37: 1966 | K37: 1967 | L37: 1968 | M37: 1969 | N37: 1970 | O37: 1971 | P37: 1972 | Q37: 1973 | R37: 1974 | S37: 1975 | T37: 1976 | U37: 1977 | V37: 1978 | W37: 1979 | X37: 1980 | Y37: 1981 | Z37: 1982 | AA37: 1983 | AB37: 1984 | AC37: 1985 | AD37: 1986 | AE37: 1987 | AF37: 1988 | AG37: 1989 | AH37: 1990 | AI37: 1991 | AJ37: 1992 | AK37: 1993 | AL37: 1994 | AM37: 1995 | AN37: 1996 | AO37: 1997 | AP37: 1998 | AQ37: 1999 | AR37: 2000 | AS37: 2001 | AT37: 2002 | AU37: 2003 | AV37: 2004 | AW37: 2005 | AX37: 2006 | AY37: 2007 | AZ37: 2008 | BA37: 2009 | BB37: 2010 | BC37: 2011
C38: Equity | D38: =D13-D22 -> 151904472 | E38: =E13-E22 -> 157493415 | F38: 162205040 | G38: 167134394 | H38: 172081037 | I38: 185006838 | J38: 194799811 | K38: 203866586 | L38: 213239044 | M38: 221402007 | N38: 230322008 | O38: 248935513 | P38: 281833559 | Q38: 351725297 | R38: 374509083 | S38: 427282520 | T38: 496579252 | U38: 543103738 | V38: 653878781 | W38: 767162138 | X38: 837990159 | Y38: 820209991 | Z38: 778525420 | AA38: 773122345 | AB38: 708997897 | AC38: 603753369 | AD38: 570709437 | AE38: 617971250 | AF38: 655387313 | AG38: 682700656 | AH38: 709492710 | AI38: 712294769 | AJ38: 736197005 | AK38: 774863241 | AL38: 795795242 | AM38: 822755805 | AN38: 854343471 | AO38: 894373531 | AP38: 918728584 | AQ38: 971130770 | AR38: 1039284942 | AS38: 1085261963 | AT38: 1063501473 | AU38: 1141337841 | AV38: 1294375504 | AW38: 1500297692 | AX38: 1690980120 | AY38: 1721207215 | AZ38: 1744798785 | BA38: 1708566527 | BB38: 1891901551 | BC38: 2024248045 | BD38: 2340725113 | BE38: 2452421761 | BF38: 2585395043 | BG38: 2523276605 | BH38: 2540276697 | BI38: 2615519640 | BJ38: 2624073179 | BK38: 2654653345 | BL38: 2733369402 | BM38: 3023498439 | BN38: 3344290061 | BO38: 3511941543
C39: Real estate debt | D39: =D23 -> 11309593 | E39: =E23 -> 12318392 | F39: 13488450 | G39: 14981360 | H39: 16850311 | I39: 18915889 | J39: 20696043 | K39: 22613532 | L39: 24729257 | M39: 26415866 | N39: 27238348 | O39: 28826497 | P39: 31379625 | Q39: 35188298 | R39: 39563003 | S39: 43750962 | T39: 48484701 | U39: 55834463 | V39: 63424623 | W39: 75778090 | X39: 85272367 | Y39: 93905270 | Z39: 96769083 | AA39: 98071338 | AB39: 101393312 | AC39: 94089977 | AD39: 84087662 | AE39: 75809859 | AF39: 70829423 | AG39: 68761420 | AH39: 67632973 | AI39: 67449880 | AJ39: 67879337 | AK39: 68432731 | AL39: 69911852 | AM39: 71722937 | AN39: 74422235 | AO39: 78513555 | AP39: 83100263 | AQ39: 87206087 | AR39: 84723763 | AS39: 88541011 | AT39: 98118184 | AU39: 97396385 | AV39: 104161951 | AW39: 113886209 | AX39: 113365478 | AY39: 131710955 | AZ39: 147901855 | BA39: 145979853 | BB39: 154065225 | BC39: 167190768 | BD39: 173368636 | BE39: 185160530 | BF39: 196780224 | BG39: 208769246 | BH39: 225980433 | BI39: 236243057 | BJ39: 245773538 | BK39: 267943655 | BL39: 288645325 | BM39: 324257298 | BN39: 349067861 | BO39: 375860118
C40: Nonreal estate debt | D40: =D32 -> 11136073 | E40: =E32 -> 11819926 | F40: 13176959 | G40: 14579582 | H40: 15306930 | I40: 16894897 | J40: 18527052 | K40: 19592588 | L40: 19192320 | M40: 20004960 | N40: 21262659 | O40: 23998571 | P40: 26720062 | Q40: 31580354 | R40: 35109684 | S40: 39752777 | T40: 45652689 | U40: 52569982 | V40: 60440998 | W40: 71742137 | X40: 77159601 | Y40: 83782208 | Z40: 87193913 | AA40: 88106779 | AB40: 87420023 | AC40: 78064559 | AD40: 67220161 | AE40: 62697543 | AF40: 62308927 | AG40: 62268982 | AH40: 63482823 | AI40: 64422903 | AJ40: 63686475 | AK40: 65878849 | AL40: 69017203 | AM40: 71262319 | AN40: 74150521 | AO40: 78393822 | AP40: 81526050 | AQ40: 80490057 | AR40: 79206060 | AS40: 82123435 | AT40: 88910829 | AU40: 83699555 | AV40: 93415679 | AW40: 95187185 | AX40: 102319434 | AY40: 109025002 | AZ40: 113161260 | BA40: 122366725 | BB40: 124865309 | BC40: 127281365 | BD40: 124152487 | BE40: 130171958 | BF40: 148421130 | BG40: 147968795 | BH40: 148183780 | BI40: 154182166 | BJ40: 156831966 | BK40: 152551145 | BL40: 152608468 | BM40: 149858504 | BN40: 154826805 | BO40: 159225667
C41: Assets | D41: =D13 -> 174350138 | E41: =E13 -> 181631733 | F41: 188870449 | G41: 196695336 | H41: 204238278 | I41: 220817624 | J41: 234022906 | K41: 246072706 | L41: 257160621 | M41: 267822833 | N41: 278823015 | O41: 301760581 | P41: 339933247 | Q41: 418493949 | R41: 449181770 | S41: 510786259 | T41: 590716642 | U41: 651508183 | V41: 777744402 | W41: 914682365 | X41: 1000422127 | Y41: 997897469 | Z41: 962488416 | AA41: 959300462 | AB41: 897811233 | AC41: 775907905 | AD41: 722017259 | AE41: 756478652 | AF41: 788525662 | AG41: 813731058 | AH41: 840608505 | AI41: 844167552 | AJ41: 867762818 | AK41: 909174821 | AL41: 934724297 | AM41: 965741060 | AN41: 1002916227 | AO41: 1051280908 | AP41: 1083354897 | AQ41: 1138826915 | AR41: 1203214765 | AS41: 1255926409 | AT41: 1250530486 | AU41: 1322433781 | AV41: 1491953134 | AW41: 1709371086 | AX41: 1906665033 | AY41: 1961943172 | AZ41: 2005861900 | BA41: 1976913105 | BB41: 2170832085 | BC41: 2318720178 | BD41: 2638246236 | BE41: 2767754249 | BF41: 2930596397 | BG41: 2880014647 | BH41: 2914440909 | BI41: 3005944863 | BJ41: 3026678682 | BK41: 3075148145 | BL41: 3174623195 | BM41: 3497614240 | BN41: 3848184726 | BO41: 4047027328
C42: Ratio: | D42: 1960 | E42: 1961 | F42: 1962 | G42: 1963 | H42: 1964 | I42: 1965 | J42: 1966 | K42: 1967 | L42: 1968 | M42: 1969 | N42: 1970 | O42: 1971 | P42: 1972 | Q42: 1973 | R42: 1974 | S42: 1975 | T42: 1976 | U42: 1977 | V42: 1978 | W42: 1979 | X42: 1980 | Y42: 1981 | Z42: 1982 | AA42: 1983 | AB42: 1984 | AC42: 1985 | AD42: 1986 | AE42: 1987 | AF42: 1988 | AG42: 1989 | AH42: 1990 | AI42: 1991 | AJ42: 1992 | AK42: 1993 | AL42: 1994 | AM42: 1995 | AN42: 1996 | AO42: 1997 | AP42: 1998 | AQ42: 1999 | AR42: 2000 | AS42: 2001 | AT42: 2002 | AU42: 2003 | AV42: 2004 | AW42: 2005 | AX42: 2006 | AY42: 2007 | AZ42: 2008 | BA42: 2009 | BB42: 2010 | BC42: 2011 | BD42: 2012 | BE42: 2013 | BF42: 2014 | BG42: 2015 | BH42: 2016 | BI42: 2017 | BJ42: 2018 | BK42: 2019 | BL42: 2020 | BM42: 2021 | BN42: 2022 | BO42: 2023
C43: Debt/equity | D43: =D22/D38 -> 0.1477617196 | E43: =E22/E38 -> 0.1532655699 | F43: 0.1643932211 | G43: 0.1768692924 | H43: 0.1868726593 | I43: 0.1935646616 | J43: 0.2013507857 | K43: 0.2070281395 | L43: 0.2059734286 | M43: 0.2096675935 | N43: 0.2105791254 | O43: 0.2122038249 | P43: 0.2061489349 | Q43: 0.1898318164 | R43: 0.1993881868 | S43: 0.1954298037 | T43: 0.1895717343 | U43: 0.1996017288 | V43: 0.1894320853 | W43: 0.1922934145 | X43: 0.1938351737 | Y43: 0.2166365686 | Z43: 0.2362967108 | AA43: 0.2408132661 | AB43: 0.2663101496 | AC43: 0.2851404975 | AD43: 0.2651223411 | AE43: 0.2241324366 | AF43: 0.203144532 | AG43: 0.1919295094 | AH43: 0.1848021737 | AI43: 0.1851379355 | AJ43: 0.1787100628 | AK43: 0.1733358519 | AL43: 0.1745788963 | AM43: 0.1737882056 | AN43: 0.1739028401 | AO43: 0.1754383058 | AP43: 0.1791892795 | AQ43: 0.1726813218 | AR43: 0.1577332802 | AS43: 0.1572564522 | AT43: 0.1758615458 | AU43: 0.1586698815 | AV43: 0.1526432086 | AW43: 0.1393546062 | AX43: 0.1275502358 | AY43: 0.139864599 | AZ43: 0.1496236226 | BA43: 0.1570594845 | BB43: 0.1474339581 | BC43: 0.1454723564 | BD43: 0.1271063917 | BE43: 0.1285800399 | BF43: 0.133519771 | BG43: 0.1413788882 | BH43: 0.1472926994 | BI43: =BI22/BI38 -> 0.1492725258 | BJ43: 0.1534276968 | BK43: 0.1583991374 | BL43: =BL22/BL38 -> 0.1614321843 | BM43: 0.1568103343 | BN43: =BN22/BN38 -> 0.1506731344 | BO43: 0.1523618142
C44: Debt/assets | D44: =D22/D13 -> 0.1287390206 | E44: =E22/E13 -> 0.1328970307 | F44: 0.1411835951 | G44: 0.1502879662 | H44: 0.1574496285 | I44: 0.1621735863 | J44: 0.1676036576 | K44: 0.1715189006 | L44: 0.170794334 | M44: 0.1733266185 | N44: 0.1739490802 | O44: 0.1750562245 | P44: 0.1709149914 | Q44: 0.1595450834 | R44: 0.1662415797 | S44: 0.1634807858 | T44: 0.1593613305 | U44: 0.1663899976 | V44: 0.1592626327 | W44: 0.161280279 | X44: 0.16236343 | Y44: 0.1780618586 | Z44: 0.1911326858 | AA44: 0.1940769596 | AB44: 0.2103040473 | AC44: 0.2218749608 | AD44: 0.209562611 | AE44: 0.1830949249 | AF44: 0.1688446622 | AG44: 0.1610242115 | AH44: 0.1559772406 | AI44: 0.1562163609 | AJ44: 0.1516149462 | AK44: 0.1477291021 | AL44: 0.1486310514 | AM44: 0.1480575497 | AN44: 0.148140744 | AO44: 0.1492535209 | AP44: 0.1519597257 | AQ44: 0.1472534086 | AR44: 0.1362431943 | AS44: 0.1358872978 | AT44: 0.1495597389 | AU44: 0.136941405 | AV44: 0.1324288448 | AW44: 0.1223101266 | AX44: 0.1131215548 | AY44: 0.1227028185 | AZ44: 0.1301500941 | BA44: 0.1357401989 | BB44: 0.1284901471 | BC44: 0.1269977015 | BD44: 0.1127723102 | BE44: 0.1139308116 | BF44: 0.1177921854 | BG44: 0.1238667454 | BH44: 0.1283828438 | BI44: =BI22/BI13 -> 0.1298843594 | BJ44: 0.1330189116 | BK44: 0.1367396887 | BL44: =BL22/BL13 -> 0.1389940682 | BM44: 0.1355540573 | BN44: =BN22/BN13 -> 0.1309434712 | BO44: 0.1322169933
C45: Real estate value/equity | D45: =D14/D38 -> 0.8115633686 | E45: =E14/E38 -> 0.8197004618 | F45: 0.8299031707 | G45: 0.8517292557 | H45: 0.8745059515 | I45: 0.8730738969 | J45: 0.8790221568 | K45: 0.8875539859 | L45: 0.8881523357 | M45: 0.8821486564 | N45: 0.878848195 | O45: 0.8739708504 | P45: 0.8622186579 | Q45: 0.8481056368 | R45: 0.895989556 | S45: 0.8976724182 | T45: 0.9193687275 | U45: 0.9377734977 | V45: 0.9203133157 | W45: 0.9203579687 | X45: 0.9341639619 | Y45: 0.957756963 | Z45: 0.96338955 | AA45: 0.9745184884 | AB45: 0.9333599123 | AC45: 0.9708987164 | AD45: 0.950410035 | AE45: 0.9121436491 | AF45: 0.8884993994 | AG45: 0.8790564631 | AH45: 0.8726646959 | AI45: 0.8771215011 | AJ45: 0.8704066651 | AK45: 0.8744483183 | AL45: 0.8848226439 | AM45: 0.9000136474 | AN45: 0.9007336243 | AO45: 0.9036815715 | AP45: 0.9147658804 | AQ45: 0.9133487295 | AR45: 0.9106527101 | AS45: 0.9179742034 | AT45: 0.9437776124 | AU45: 0.8904901244 | AV45: 0.8973915455 | AW45: 0.9149025339 | AX45: 0.9087281002 | AY45: 0.8999412479 | AZ45: 0.8989869958 | BA45: 0.9133714645 | BB45: 0.8774842418 | BC45: 0.8905539069 | BD45: 0.8859068797 | BE45: 0.9178690027 | BF45: 0.9217741844 | BG45: 0.9375576539 | BH45: 0.9453113741 | BI45: =BI14/BI38 -> 0.9454503515 | BJ45: 0.9565904938 | BK45: 0.9590689187 | BL45: =BL14/BL38 -> 0.9661857095 | BM45: 0.9578302445 | BN45: =BN14/BN38 -> 0.9533322032 | BO45: 0.9651500876
C46: Real estate value/assets | D46: =D14/D13 -> 0.7070834954 | E46: =E14/E13 -> 0.7107647043 | F46: 0.7127344575 | G46: 0.7237245981 | H46: 0.7368153143 | I46: 0.7314843719 | J46: 0.7316948282 | K46: 0.735321702 | L46: 0.7364609491 | M46: 0.7292488128 | N46: 0.7259733598 | O46: 0.7209768131 | P46: 0.7148525634 | Q46: 0.7127945523 | R46: 0.7470388369 | S46: 0.7509202259 | T46: 0.7728569039 | U46: 0.7817373677 | V46: 0.7737417942 | W46: 0.7719223788 | X46: 0.7824898969 | Y46: 0.7872169781 | Z46: 0.7792543178 | AA46: 0.7853869031 | AB46: 0.7370705452 | AC46: 0.7554806018 | AD46: 0.7512396265 | AE46: 0.7451347761 | AF46: 0.7384810185 | AG46: 0.7375070892 | AH46: 0.7365488647 | AI46: 0.7401007721 | AJ46: 0.7384400054 | AK46: 0.7452668534 | AL46: 0.753310524 | AM46: 0.7667598321 | AN46: 0.7672982751 | AO46: 0.7688039152 | AP46: 0.7757583081 | AQ46: 0.7788550159 | AR46: 0.786582476 | AS46: 0.7932331694 | AT46: 0.8026264791 | AU46: 0.7685451556 | AV46: 0.7785510198 | AW46: 0.8030006891 | AX46: 0.8059313647 | AY46: 0.7895159203 | AZ46: 0.7819837537 | BA46: 0.7893902403 | BB46: 0.7647361624 | BC46: 0.7774556077 | BD46: 0.7860011142 | BE46: 0.8132954423 | BF46: 0.8131963888 | BG46: 0.8214254384 | BH46: 0.8239496116 | BI46: =BI14/BI13 -> 0.8226511382 | BJ46: 0.8293458678 | BK46: 0.8279261333 | BL46: =BL14/BL13 -> 0.8318916271 | BM46: 0.8279924687 | BN46: =BN14/BN13 -> 0.8284995755 | BO46: 0.837540845
C47: Real estate debt to D | D47: =D23/D22 -> 0.5038653342 | E47: =E23/E22 -> 0.5103252016 | F47: 0.5058407317 | G47: 0.5067957577 | H47: 0.5239974101 | I47: 0.5282176437 | J47: 0.5276494117 | K47: 0.5357879852 | L47: 0.5630320833 | M47: 0.5690520457 | N47: 0.5616037622 | O47: 0.5456973004 | P47: 0.5400997162 | Q47: 0.527018248 | R47: 0.5298189283 | S47: 0.5239401555 | T47: 0.5150419084 | U47: 0.5150569518 | V47: 0.5120437979 | W47: 0.5136793207 | X47: 0.524972812 | Y47: 0.5284855807 | Z47: 0.5260247175 | AA47: 0.5267608223 | AB47: 0.5370029159 | AC47: 0.5465436996 | AD47: 0.5557390285 | AE47: 0.5473343511 | AF47: 0.531998658 | AG47: 0.5247745481 | AH47: 0.5158262816 | AI47: 0.511476883 | AJ47: 0.5159344624 | AK47: 0.5095073038 | AL47: 0.5032198052 | AM47: 0.501610722 | AN47: 0.5009144139 | AO47: 0.5003815404 | AP47: 0.5047811707 | AQ47: 0.5200243989 | AR47: 0.5168294667 | AS47: 0.5188017368 | AT47: 0.5246147773 | AU47: 0.5378165021 | AV47: 0.5271950625 | AW47: 0.5447188034 | AX47: 0.5256068977 | AY47: 0.5471179156 | AZ47: 0.5665367741 | BA47: 0.5439974457 | BB47: 0.5523426309 | BC47: 0.567764312 | BD47: 0.5827103442 | BE47: 0.5871914156 | BF47: 0.5700447629 | BG47: 0.5852172239 | BH47: 0.603960576 | BI47: =BI23/BI22 -> 0.6050916874 | BJ47: 0.6104574715 | BK47: 0.6372103888 | BL47: =BL23/BL22 -> 0.654148088 | BM47: 0.6839200409 | BN47: =BN23/BN22 -> 0.6927397422 | BO47: 0.702429645
C48: E/A | D48: =D38/D41 -> 0.8712609794 | E48: =E38/E41 -> 0.8671029693 | F48: 0.8588164049 | G48: 0.8497120338 | H48: 0.8425503715 | I48: 0.8378264137 | J48: 0.8323963424 | K48: 0.8284810994 | L48: 0.829205666 | M48: 0.8266733815 | N48: 0.8260509198 | O48: 0.8249437755 | P48: 0.8290850086 | Q48: 0.8404549166 | R48: 0.8337584203 | S48: 0.8365192142 | T48: 0.8406386695 | U48: 0.8336100024 | V48: 0.8407373673 | W48: 0.838719721 | X48: 0.83763657 | Y48: 0.8219381414 | Z48: 0.8088673142 | AA48: 0.8059230404 | AB48: 0.7896959527 | AC48: 0.7781250392 | AD48: 0.790437389 | AE48: 0.8169050751 | AF48: 0.8311553378 | AG48: 0.8389757885 | AH48: 0.8440227594 | AI48: 0.8437836391 | AJ48: 0.8483850538 | AK48: 0.8522708979 | AL48: 0.8513689486 | AM48: 0.8519424503 | AN48: 0.851859256 | AO48: 0.8507464791 | AP48: 0.8480402743 | AQ48: 0.8527465914 | AR48: 0.8637568057 | AS48: 0.8641127022 | AT48: 0.8504402611 | AU48: 0.863058595 | AV48: 0.8675711552 | AW48: 0.8776898734 | AX48: 0.8868784452 | AY48: 0.8772971815 | AZ48: 0.8698499059 | BA48: 0.8642598011 | BB48: 0.8715098529 | BC48: 0.8730022985 | BD48: 0.8872276898 | BE48: 0.8860691884 | BF48: 0.8822078146 | BG48: 0.8761332543 | BH48: 0.8716171562 | BI48: =BI38/BI41 -> 0.8701156406 | BJ48: 0.8669810887 | BK48: 0.8632603113 | BL48: =BL38/BL41 -> 0.8610059318 | BM48: 0.8644459427 | BN48: =BN38/BN41 -> 0.869056529 | BO48: 0.8677830067
C51: Lender Shares of Debt through time:
C52: Real estate | D52: Lender Shares
C53: Year | D53: 1960 | E53: 1961 | F53: 1962 | G53: 1963 | H53: 1964 | I53: 1965 | J53: 1966 | K53: 1967 | L53: 1968 | M53: 1969 | N53: 1970 | O53: 1971 | P53: 1972 | Q53: 1973 | R53: 1974 | S53: 1975 | T53: 1976 | U53: 1977 | V53: 1978 | W53: 1979 | X53: 1980 | Y53: 1981 | Z53: 1982 | AA53: 1983 | AB53: 1984 | AC53: 1985 | AD53: 1986 | AE53: 1987 | AF53: 1988 | AG53: 1989 | AH53: 1990 | AI53: 1991 | AJ53: 1992 | AK53: 1993 | AL53: 1994 | AM53: 1995 | AN53: 1996 | AO53: 1997 | AP53: 1998 | AQ53: 1999 | AR53: 2000 | AS53: 2001 | AT53: 2002 | AU53: 2003 | AV53: 2004 | AW53: 2005 | AX53: 2006 | AY53: 2007 | AZ53: 2008 | BA53: 2009 | BB53: 2010 | BC53: 2011 | BD53: 2012 | BE53: 2013 | BF53: 2014 | BG53: 2015 | BH53: 2016 | BI53: 2017 | BJ53: 2018 | BK53: 2019 | BL53: 2020 | BM53: 2021 | BN53: 2022 | BO53: 2023
C54: Farm Credit System | D54: =D24/D$23 -> 0.1964969915 | E54: 0.1999053123 | F54: 0.197721977 | G54: 0.1939271869 | H54: 0.1938629501 | I54: 0.1991141416 | J54: 0.2120647411 | K54: 0.2198213441 | L54: 0.2197300954 | M54: 0.2262581132 | N54: 0.2338218896 | O54: 0.2428384205 | P54: 0.2553937149 | Q54: 0.2732966511 | R54: 0.2992572884 | S54: 0.3209915247 | T54: 0.3346035278 | U54: 0.3361986843 | V54: 0.3400390728 | W54: 0.342707846 | X54: 0.3702908587 | Y54: 0.407790436 | Z54: 0.4287861961 | AA54: 0.4295269531 | AB54: 0.4365779569 | AC54: 0.4212822265 | AD54: 0.3936494393 | AE54: 0.3719100836 | AF54: 0.3654605516 | AG54: 0.3539894028 | AH54: 0.3468968309 | AI54: 0.3376547297 | AJ54: =AJ24/AJ$23 -> 0.3368741212 | AK54: 0.3274692924 | AL54: 0.3166421053 | AM54: 0.3134350731 | AN54: 0.3150967181 | AO54: 0.3174569156 | AP54: 0.3223527584 | AQ54: 0.3215916683 | AR54: 0.3504571203 | AS54: 0.3710674481 | AT54: 0.3854062974 | AU54: 0.3409470588 | AV54: 0.3559633402 | AW54: 0.4203068696 | AX54: 0.4383502798 | AY54: 0.4390200648 | AZ54: 0.4248603373 | BA54: =BA24/BA$23 -> 0.4731779323 | BB54: 0.4704405423 | BC54: 0.4503089429 | BD54: 0.463427266 | BE54: 0.4604151976 | BF54: 0.4512522458 | BG54: =BG24/BG$23 -> 0.4630114581 | BH54: 0.4591084972 | BI54: =BI24/BI$23 -> 0.4537100999 | BJ54: 0.4598921427 | BK54: 0.4672311125 | BL54: =BL24/BL$23 -> 0.4867956375 | BM54: 0.4875064369 | BN54: =BN24/BN$23 -> 0.4875064369 | BO54: 0.4875064369
C55: Farm Service Agency | D55: =D25/D$23 -> 0.05516511514 | E55: 0.06673476538 | F55: 0.06829205728 | G55: 0.06838471274 | H55: 0.06679146753 | I55: 0.06949379963 | J55: 0.07092094851 | K55: 0.07235437613 | L55: 0.0737944937 | M55: 0.07680187354 | N55: 0.07963008623 | O55: 0.08046267294 | P55: 0.07984544111 | Q55: 0.07540881915 | R55: 0.07131301433 | S55: 0.06735383327 | T55: 0.06578582386 | U55: 0.06200842301 | V55: 0.05630967645 | W55: 0.07874483244 | X55: 0.08320163084 | Y55: 0.08227779974 | Z55: 0.08187259561 | AA55: 0.08347795765 | AB55: 0.08922125949 | AC55: 0.09811517969 | AD55: 0.1074257719 | AE55: 0.1144399701 | AF55: 0.115369696 | AG55: 0.1079661967 | AH55: 0.1022241917 | AI55: 0.09394765417 | AJ55: =AJ25/AJ$23 -> 0.0847828994 | AK55: 0.07677096797 | AL55: 0.07035367909 | AM55: 0.06375603386 | AN55: 0.05758187724 | AO55: 0.05122650477 | AP55: 0.04545430861 | AQ55: 0.04109453965 | AR55: 0.04034550496 | AS55: 0.03780591572 | AT55: 0.03242008637 | AU55: 0.02236222628 | AV55: 0.02300264134 | AW55: 0.02153904341 | AX55: 0.02094111931 | AY55: 0.01940496142 | AZ55: 0.01666644411 | BA55: =BA25/BA$23 -> 0.0180665273 | BB55: 0.02255821844 | BC55: 0.01994424716 | BD55: 0.02159120638 | BE55: 0.02007487233 | BF55: 0.02198233599 | BG55: =BG25/BG$23 -> 0.02326860921 | BH55: 0.02617268195 | BI55: =BI25/BI$23 -> 0.02551517525 | BJ55: 0.02693804652 | BK55: 0.02981446603 | BL55: =BL25/BL$23 -> 0.03218557584 | BM55: 0.032768493 | BN55: =BN25/BN$23 -> 0.032768493 | BO55: 0.032768493
C56: Commercial banks | D56: =D27/D$23 -> 0.1198746056 | E56: 0.1137884717 | F56: 0.1191343705 | G56: 0.123094699 | H56: 0.1240363457 | I56: 0.1194712551 | J56: 0.1168425771 | K56: 0.1183602367 | L56: 0.1180214189 | M56: 0.1179574048 | N56: 0.1223989428 | O56: 0.1289179882 | P56: 0.1340872939 | Q56: 0.1356882052 | R56: 0.1315427193 | S56: 0.1251622993 | T56: 0.1213594367 | U56: 0.1206168312 | V56: 0.1164938734 | W56: 0.098486647 | X56: 0.08713779459 | Y56: 0.07723510086 | Z56: 0.07480659913 | AA56: 0.08136619896 | AB56: 0.09019390746 | AC56: 0.1072161597 | AD56: 0.1320799953 | AE56: 0.1643338764 | AF56: 0.1854406466 | AG56: 0.2064437296 | AH56: 0.2179522258 | AI56: 0.2323929116 | AJ56: 0.248693752 | AK56: 0.2576997987 | AL56: 0.2713593398 | AM56: 0.28096065 | AN56: 0.2850451213 | AO56: 0.2956877701 | AP56: 0.3031660682 | AQ56: 0.3162490137 | AR56: 0.3512234578 | AS56: 0.3510475163 | AT56: 0.3100544543 | AU56: 0.3283489423 | AV56: 0.3349716923 | AW56: 0.3263481885 | AX56: 0.3303919205 | AY56: 0.311757492 | AZ56: 0.3136911704 | BA56: =BA27/BA$23 -> 0.3030846181 | BB56: 0.3325072676 | BC56: 0.3166815586 | BD56: 0.3723827705 | BE56: 0.3721264678 | BF56: 0.3722638409 | BG56: =BG27/BG$23 -> 0.3791928003 | BH56: 0.373561157 | BI56: =BI27/BI$23 -> 0.3740147081 | BJ56: 0.3781631975 | BK56: 0.3652884857 | BL56: =BL27/BL$23 -> 0.3355288294 | BM56: 0.3109114941 | BN56: =BN27/BN$23 -> 0.3109114941 | BO56: 0.3109114941
C57: Life insurance co. | D57: 0.2344546793 | E57: 0.2295877579 | F57: 0.225628964 | G57: 0.2273093364 | H57: 0.2294174867 | I57: 0.2293979416 | J57: 0.2284380159 | K57: 0.2226138756 | L57: 0.2117174002 | M57: 0.1976886164 | N57: 0.1849893393 | O57: 0.172789604 | P57: 0.1604848688 | Q57: 0.1507345141 | R57: 0.1410882789 | S57: 0.1357406724 | T57: 0.1343092123 | U57: 0.1385379134 | V57: 0.1444298534 | W57: 0.1406000996 | X57: 0.132953985 | Y57: 0.1222752142 | Z57: 0.1154468726 | AA57: 0.112329272 | AB57: 0.1114131867 | AC57: 0.1126190625 | AD57: 0.1147691679 | AE57: 0.1135291255 | AF57: 0.1161359877 | AG57: 0.1199419238 | AH57: 0.1298493118 | AI57: 0.1273719835 | AJ57: 0.1162137898 | AK57: 0.118173612 | AL57: 0.1161837767 | AM57: 0.114671559 | AN57: 0.1159491784 | AO57: 0.1136231317 | AP57: 0.1196582134 | AQ57: 0.1219407769 | AR57: 0.1304628077 | AS57: 0.1265559414 | AT57: 0.1164004421 | AU57: 0.1029401656 | AV57: 0.1029742617 | AW57: 0.09928331182 | AX57: 0.1058611511 | AY57: 0.08204483067 | AZ57: 0.09288068767 | BA57: =BA28/BA$23 -> 0.09104802976 | BB57: 0.08072456974 | BC57: 0.07777788305 | BD57: 0.06626048555 | BE57: 0.06468493582 | BF57: 0.06303374774 | BG57: =BG28/BG$23 -> 0.0600064293 | BH57: 0.05843037304 | BI57: =BI28/BI$23 -> 0.06366929971 | BJ57: 0.06451336108 | BK57: 0.06648461222 | BL57: =BL28/BL$23 -> 0.0664573729 | BM57: 0.06509816165 | BN57: =BN28/BN$23 -> 0.06509816165 | BO57: 0.06509816165
C58: Individuals and others | D58: 0.3898058047 | E58: 0.3843814193 | F58: 0.3837487628 | G58: 0.3832830264 | H58: 0.3832918573 | I58: 0.3807301364 | J58: 0.3701650601 | K58: 0.3641589912 | L58: 0.3707809741 | M58: 0.3748580115 | N58: 0.3737895191 | O58: 0.3684078575 | P58: 0.3617069356 | Q58: 0.3569724515 | R58: 0.3513160768 | S58: 0.346857196 | T58: 0.3409816016 | U58: 0.333830774 | V58: 0.3246334787 | W58: 0.3211061535 | X58: 0.3093368219 | Y58: 0.2961287583 | Z58: 0.287439109 | AA58: 0.2842455458 | AB58: 0.2664483926 | AC58: 0.2575038359 | AD58: 0.2506161368 | AE58: 0.2351839488 | AF58: 0.2173020526 | AG58: 0.2114904113 | AH58: 0.2029812293 | AI58: 0.2085765757 | AJ58: 0.2134061946 | AK58: 0.2198863436 | AL58: 0.2254610992 | AM58: 0.2271766701 | AN58: 0.2263271051 | AO58: 0.2220056906 | AP58: 0.2093686635 | AQ58: 0.199124013 | AR58: 0.1275111093 | AS58: 0.1135231672 | AT58: 0.1523993249 | AU58: 0.1939870458 | AV58: 0.1726429356 | AW58: 0.1235656549 | AX58: 0.08922845101 | AY58: 0.1236514305 | AZ58: 0.132845129 | BA58: =BA29/BA$23 -> 0.09720948274 | BB58: 0.06628185562 | BC58: 0.1084164288 | BD58: =BD29/BD$23 -> 0.05011899038 | BE58: 0.05446217939 | BF58: 0.06361374505 | BG58: =BG29/BG$23 -> 0.04769032408 | BH58: 0.05528888866 | BI58: =BI29/BI$23 -> 0.05342572671 | BJ58: 0.04047048385 | BK58: 0.0394400793 | BL58: =BL29/BL$23 -> 0.04566675036 | BM58: 0.07089666491 | BN58: =BN29/BN$23 -> 0.07089666491 | BO58: 0.07089666491
C59: CCC storage & drying loans | D59: =D30/D$23 -> 0.004202007977 | E59: 0.005601867516 | F59: 0.005473497696 | G59: 0.004000437877 | H59: 0.002599892667 | I59: 0.001792937144 | J59: 0.001568222486 | K59: 0.00269086669 | L59: 0.005955536796 | M59: 0.006436131982 | N59: 0.005370222893 | O59: 0.00658345688 | P59: 0.008481745719 | Q59: 0.007899359043 | R59: 0.005482622237 | S59: 0.003894474366 | T59: 0.002960397755 | U59: 0.008807374041 | V59: 0.01809404527 | W59: 0.01835442144 | X59: 0.01707890904 | Y59: 0.01429269092 | Z59: 0.01164862749 | AA59: 0.009054072455 | AB59: 0.006145306704 | AC59: 0.003263546339 | AD59: 0.001459488789 | AE59: 0.0006029954494 | AF59: 0.0002910654799 | AG59: 0.0001683356743 | AH59: 9.619568254e-05 | AI59: 5.613056687e-05 | AJ59: 2.922833498e-05 | AK59: 0 | AL59: 0 | AM59: 0 | AN59: 0 | AO59: 0 | AP59: 0 | AQ59: 0 | AR59: 0 | AS59: 0 | AT59: 0 | AU59: 0.002011881652 | AV59: 0.002167566927 | AW59: 0.002192671107 | AX59: 0.002398913715 | AY59: 0.002636257554 | AZ59: 0.002645085148 | BA59: =BA29/BA$23 -> 0.09720948274 | BB59: 0.004116977079 | BC59: =BC30/BC$23 -> 0.004320866568 | BD59: 0.004234128023 | BE59: 0.004032322655
C60: Total | D60: =SUM(D54:D59) -> 0.9999992042 | E60: 0.9999995941 | F60: 0.9999996293 | G60: 0.9999993993 | H60: 1 | I60: 1.000000211 | J60: 0.9999995651 | K60: 0.9999996905 | L60: 0.9999999191 | M60: 1.000000151 | N60: 1 | O60: 1 | P60: 1 | Q60: 1 | R60: 1 | S60: 1 | T60: 1 | U60: 1 | V60: 1 | W60: 1 | X60: 1 | Y60: 1 | Z60: 1 | AA60: 1 | AB60: 1.00000001 | AC60: 1.000000011 | AD60: 1 | AE60: 1 | AF60: 1 | AG60: 1 | AH60: 0.9999999852 | AI60: 0.9999999852 | AJ60: =SUM(AJ54:AJ59) -> 0.9999999853 | AK60: 1.000000015 | AL60: 1 | AM60: 0.9999999861 | AN60: 1 | AO60: 1.000000013 | AP60: 1.000000012 | AQ60: 1.000000011 | AR60: 1 | AS60: 0.9999999887 | AT60: 0.9966806051 | AU60: 0.9905973204 | AV60: 0.9917224381 | AW60: 0.9932357394 | AX60: 0.9871718355 | AY60: 0.978515037 | AZ60: 0.9835888536 | BA60: 1.079796073 | BB60: 0.9766294308 | BC60: =SUM(BC54:BC59) -> 0.9774499271 | BD60: 0.9780148469 | BE60: 0.9757959755
C61: Total Real Estate Debt | D61: =D39 -> 11309593 | E61: =E39 -> 12318392 | F61: 13488450 | G61: 14981360 | H61: 16850311 | I61: 18915889 | J61: 20696043 | K61: 22613532 | L61: 24729257 | M61: 26415866 | N61: 27238348 | O61: 28826497 | P61: 31379625 | Q61: 35188298 | R61: 39563003 | S61: 43750962 | T61: 48484701 | U61: 55834463 | V61: 63424623 | W61: 75778090 | X61: 85272367 | Y61: 93905270 | Z61: 96769083 | AA61: 98071338 | AB61: 101393312 | AC61: 94089977 | AD61: 84087662 | AE61: 75809859 | AF61: 70829423 | AG61: 68761420 | AH61: 67632973 | AI61: 67449880 | AJ61: 67879337 | AK61: 68432731 | AL61: 69911852 | AM61: 71722937 | AN61: 74422235 | AO61: 78513555 | AP61: 83100263 | AQ61: 87206087 | AR61: 84723763 | AS61: 88541011 | AT61: 98118184 | AU61: 97396385 | AV61: 104161951 | AW61: 113886209 | AX61: 113365478 | AY61: 131710955 | AZ61: 147901855 | BA61: 145979853 | BB61: 154065225 | BC61: =BC39 -> 167190768 | BD61: 173368636 | BE61: =BE39 -> 185160530 | BF61: =BF39 -> 196780224 | BG61: =BG39 -> 208769246 | BH61: =BH39 -> 225980433 | BI61: =BI39 -> 236243057 | BJ61: =BJ39 -> 245773538 | BK61: 267943655 | BL61: =BL39 -> 288645325 | BM61: 324257298 | BN61: =BN39 -> 349067861 | BO61: 375860118
C64: Nonrealestate
C65: Farm Credit System | D65: =D33/D$32 -> 0.1355110549 | E65: =E33/E$32 -> 0.1415738982 | F65: 0.1417699638 | G65: 0.1472575826 | H65: 0.1509850114 | I65: 0.1547978067 | J65: 0.1647290136 | K65: 0.1813747627 | L65: 0.2007558232 | M65: 0.2265873563 | N65: 0.2494098222 | O65: 0.2529544363 | P65: 0.2466969949 | Q65: 0.2478612494 | R65: 0.2710323454 | S65: 0.2686766009 | T65: 0.2653871933 | U65: 0.2537342509 | V65: 0.2433418455 | W65: 0.248702363 | X65: 0.2528747913 | Y65: 0.2507694712 | Z65: 0.2329247456 | AA65: 0.2174195586 | AB65: 0.2043995001 | AC65: 0.1772086742 | AD65: 0.1517135462 | AE65: 0.1480099786 | AF65: 0.1392195696 | AG65: 0.1516784392 | AH65: 0.1535136048 | AI65: 0.1570138961 | AJ65: 0.1607530013 | AK65: 0.1583184157 | AL65: 0.160307641 | AM65: 0.1731983911 | AN65: 0.1871580511 | AO65: 0.189353582 | AP65: 0.200949721 | AQ65: 0.1926913035 | AR65: 0.2106831851 | AS65: 0.2435358433 | AT65: 0.2304668647 | AU65: 0.2409480791 | AV65: 0.2359380806 | AW65: 0.2526907377 | AX65: 0.2635380196 | AY65: 0.2882075068 | AZ65: 0.3183376979 | BA65: 0.3186074319 | BB65: 0.3141837578 | BC65: 0.3227910386 | BD65: 0.3437687156 | BE65: 0.3381362828 | BF65: 0.3226439928 | BG65: 0.3263055633 | BH65: 0.3332096131 | BI65: =BI33/BI$32 -> 0.3316155904 | BJ65: 0.3404150146 | BK65: 0.3471068211 | BL65: =BL33/BL$32 -> 0.3623737773 | BM65: 0.3776665754 | BN65: =BN33/BN$32 -> 0.3776665754 | BO65: 0.3776665754
C66: Farm Service Agency | D66: 0.03315064476 | E66: =E34/E$32 -> 0.03693347996 | F66: 0.03714423032 | G66: 0.0358399164 | H66: 0.03701865756 | I66: 0.03734725343 | J66: 0.03502775293 | K66: 0.03584416719 | L66: 0.03767454899 | M66: 0.03453608505 | N66: 0.0336445691 | O66: 0.02907235602 | P66: 0.02658107605 | Q66: 0.02541174808 | R66: 0.02736820417 | S66: 0.04124076665 | T66: 0.03824219423 | U66: 0.05587255099 | V66: 0.08989262553 | W66: 0.1225610829 | X66: 0.1403213451 | Y66: 0.163716084 | Z66: 0.1606623504 | AA66: 0.1575109334 | AB66: 0.1696685667 | AC66: 0.2034767019 | AD66: 0.2316594422 | AE66: 0.2431807415 | AF66: 0.2234925824 | AG66: 0.1879883792 | AH66: 0.1594108063 | AI66: 0.1376183871 | AJ66: 0.1210883944 | AK66: 0.1022355597 | AL66: 0.09415735089 | AM66: 0.07713187105 | AN66: 0.06721393097 | AO66: 0.05803885924 | AP66: 0.05206933244 | AQ66: 0.05296918848 | AR66: 0.05313075792 | AS66: 0.05054560857 | AT66: 0.04468522051 | AU66: 0.04356056612 | AV66: 0.03472650453 | AW66: 0.03160089249 | AX66: 0.02672024163 | AY66: 0.02859156104 | AZ66: 0.02626507517 | BA66: 0.02733360724 | BB66: 0.02917110468 | BC66: 0.02785489455 | BD66: 0.02702342161 | BE66: 0.02179113723 | BF66: 0.02391984214 | BG66: 0.02533333464 | BH66: 0.02553511592 | BI66: =BI34/BI$32 -> 0.02567983122 | BJ66: 0.02482212077 | BK66: 0.02497502723 | BL66: =BL34/BL$32 -> 0.02410402285 | BM66: 0.0224542746 | BN66: =BN34/BN$32 -> 0.0224542746 | BO66: 0.0224542746
C67: Commercial banks | D67: 0.4235734626 | E67: =E35/E$32 -> 0.4250010533 | F67: 0.4288249664 | G67: 0.4311718265 | H67: 0.4315412039 | I67: 0.4293975867 | J67: 0.4352634191 | K67: 0.4471900292 | L67: 0.4785814847 | M67: 0.4879588862 | N67: 0.4934082327 | O67: 0.4921514285 | P67: 0.5062591172 | Q67: 0.5136926584 | R67: 0.4908877277 | S67: 0.479230973 | T67: 0.4819425642 | U67: 0.4621428442 | V67: 0.4420480449 | W67: 0.4087891193 | X67: 0.3886203999 | Y67: 0.372569484 | Z67: 0.3936285667 | AA67: 0.4207974621 | AB67: 0.4303245722 | AC67: 0.4321760275 | AD67: 0.4415091478 | AE67: 0.4400299546 | AF67: 0.4543285106 | AG67: 0.4696282974 | AH67: 0.4925348074 | AI67: 0.5099791141 | AJ67: 0.5167814516 | AK67: 0.5303501128 | AL67: 0.5321823894 | AM67: 0.5297078109 | AN67: 0.5174342875 | AO67: 0.5236344007 | AP67: 0.5174837736 | AQ67: 0.513752649 | AR67: 0.5662986014 | AS67: 0.5482620156 | AT67: 0.5033413871 | AU67: 0.5314162423 | AV67: 0.4982561225 | AW67: 0.5111020354 | AX67: 0.4727580393 | AY67: 0.4953162945 | AZ67: 0.4975884945 | BA67: 0.467084193 | BB67: 0.4499006846 | BC67: 0.4650305094 | BD67: 0.4822943337 | BE67: 0.4895088157 | BF67: 0.4766030214 | BG67: 0.4945495501 | BH67: 0.4942076184 | BI67: =BI35/BI$32 -> 0.475459464 | BJ67: 0.4806102539 | BK67: 0.4662373134 | BL67: =BL35/BL$32 -> 0.4135829016 | BM67: 0.4343052564 | BN67: =BN35/BN$32 -> 0.4343052564 | BO67: 0.4343052564
C68: Individuals and others | D68: 0.4077650173 | E68: =E36/E$32 -> 0.3964913148 | F68: 0.3922606119 | G68: 0.3857309489 | H68: 0.3804553885 | I68: 0.3784574123 | J68: 0.3649798684 | K68: 0.335591194 | L68: 0.2829880911 | M68: 0.2509177724 | N68: 0.223537376 | O68: 0.2258217791 | P68: 0.2204628118 | Q68: 0.2130343441 | R68: 0.2107116942 | S68: 0.2108516847 | T68: 0.2144280483 | U68: 0.228250373 | V68: 0.224717484 | W68: 0.2199474348 | X68: 0.2181834766 | Y68: 0.2129449489 | Z68: 0.2127843374 | AA68: 0.2042720345 | AB68: 0.195607361 | AC68: 0.1871385964 | AD68: 0.1751178489 | AE68: 0.1687793252 | AF68: 0.1829593374 | AG68: 0.1907048842 | AH68: 0.1945407658 | AI68: 0.1953885872 | AJ68: 0.2013771527 | AK68: 0.2090959118 | AL68: 0.2133526188 | AM68: 0.2199619269 | AN68: 0.2281937169 | AO68: 0.2289731581 | AP68: 0.229497173 | AQ68: 0.2405868591 | AR68: 0.1698874556 | AS68: 0.1576565203 | AT68: 0.2215065276 | AU68: 0.1840751125 | AV68: 0.2310792924 | AW68: 0.2046063344 | AX68: 0.2369836995 | AY68: 0.1878846377 | AZ68: 0.1578087324 | BA68: 0.1869747679 | BB68: 0.2067444529 | BC68: 0.1843235654 | BD68: 0.146913529 | BE68: 0.1505637643 | BF68: 0.1768331504 | BG68: 0.153811552 | BH68: 0.1470476526 | BI68: =BI36/BI$32 -> 0.1672451145 | BJ68: 0.1541526107 | BK68: 0.1616808383 | BL68: =BL36/BL$32 -> 0.1999392983 | BM68: 0.1655738936 | BN68: =BN36/BN$32 -> 0.1655738936 | BO68: 0.1655738936
C69: Total NonReal Estate Debt | D69: =D40 -> 11136073 | E69: =E40 -> 11819926 | F69: 13176959 | G69: 14579582 | H69: 15306930 | I69: 16894897 | J69: 18527052 | K69: 19592588 | L69: 19192320 | M69: 20004960 | N69: 21262659 | O69: 23998571 | P69: 26720062 | Q69: 31580354 | R69: 35109684 | S69: 39752777 | T69: 45652689 | U69: 52569982 | V69: 60440998 | W69: 71742137 | X69: 77159601 | Y69: 83782208 | Z69: 87193913 | AA69: 88106779 | AB69: 87420023 | AC69: 78064559 | AD69: 67220161 | AE69: 62697543 | AF69: 62308927 | AG69: 62268982 | AH69: 63482823 | AI69: 64422903 | AJ69: 63686475 | AK69: 65878849 | AL69: 69017203 | AM69: 71262319 | AN69: 74150521 | AO69: 78393822 | AP69: 81526050 | AQ69: 80490057 | AR69: 79206060 | AS69: 82123435 | AT69: 88910829 | AU69: 83699555 | AV69: 93415679 | AW69: 95187185 | AX69: 102319434 | AY69: 109025002 | AZ69: 113161260 | BA69: 122366725 | BB69: 124865309 | BC69: 127281365 | BD69: 124152487 | BE69: 130171958 | BF69: 148421130 | BG69: 147968795 | BH69: 148183780 | BI69: =BI40 -> 154182166 | BJ69: 156831966 | BK69: 152551145 | BL69: =BL40 -> 152608468 | BM69: 149858504 | BN69: =BN40 -> 154826805 | BO69: 159225667
B76: Source: USDA - ERS, various years
C95: FCS Ag Debt Volume
D96: =D7 -> 1960 | E96: 1961 | F96: 1962 | G96: 1963 | H96: 1964 | I96: 1965 | J96: 1966 | K96: 1967 | L96: 1968 | M96: 1969 | N96: 1970 | O96: 1971 | P96: 1972 | Q96: 1973 | R96: 1974 | S96: 1975 | T96: 1976 | U96: 1977 | V96: 1978 | W96: 1979 | X96: 1980 | Y96: 1981 | Z96: 1982 | AA96: 1983 | AB96: 1984 | AC96: 1985 | AD96: 1986 | AE96: 1987 | AF96: 1988 | AG96: 1989 | AH96: 1990 | AI96: 1991 | AJ96: =AJ7 -> 1992 | AK96: 1993 | AL96: 1994 | AM96: 1995 | AN96: 1996 | AO96: 1997 | AP96: 1998 | AQ96: 1999 | AR96: 2000 | AS96: 2001 | AT96: 2002 | AU96: 2003 | AV96: 2004 | AW96: 2005 | AX96: 2006 | AY96: 2007 | AZ96: 2008 | BA96: 2009 | BB96: 2010 | BC96: =BC7 -> 2011 | BD96: 2012 | BE96: 2013
C97: FCS Non Real Estate Debt | D97: =D33 -> 1509061 | E97: 1673393 | F97: 1868097 | G97: 2146954 | H97: 2311117 | I97: 2615293 | J97: 3051943 | K97: 3553601 | L97: 3852970 | M97: 4532871 | N97: 5303116 | O97: 6070545 | P97: 6591759 | Q97: 7827546 | R97: 9515860 | S97: 10680641 | T97: 12115639 | U97: 13338805 | V97: 14707824 | W97: 17842439 | X97: 19511718 | Y97: 21010020 | Z97: 20309620 | AA97: 19156137 | AB97: 17868609 | AC97: 13833717 | AD97: 10198209 | AE97: 9279862 | AF97: 8674622 | AG97: 9444862 | AH97: 9745477 | AI97: 10115291 | AJ97: 10237792 | AK97: 10429835 | AL97: 11063985 | AM97: 12342519 | AN97: 13877867 | AO97: 14844151 | AP97: 16382637 | AQ97: 15509734 | AR97: 16687385 | AS97: 20000000 | AT97: 20491000 | AU97: 20167247 | AV97: 22040316 | AW97: 24052920 | AX97: 26965061 | AY97: 31421824 | AZ97: 36023495 | BA97: =BA32 -> 122366725 | BB97: 39230652 | BC97: =BC33 -> 41085284 | BD97: 42679741
C98: FCS Resl Estate Debt | D98: =D24 -> 2222301 | E98: 2462512 | F98: 2666963 | G98: 2905293 | H98: 3266651 | I98: 3766421 | J98: 4388901 | K98: 4970937 | L98: 5433762 | M98: 5976804 | N98: 6368922 | O98: 7000181 | P98: 8014159 | Q98: 9616844 | R98: 11839517 | S98: 14043688 | T98: 16223152 | U98: 18771473 | V98: 21566850 | W98: 25969746 | X98: 31575578 | Y98: 38293671 | Z98: 41493247 | AA98: 42124283 | AB98: 44266085 | AC98: 39638435 | AD98: 33101061 | AE98: 28194451 | AF98: 25885360 | AG98: 24340814 | AH98: 23461664 | AI98: 22774771 | AJ98: 22866792 | AK98: 22409618 | AL98: 22137036 | AM98: 22480484 | AN98: 23450202 | AO98: 24924671 | AP98: 26787599 | AQ98: 28044751 | AR98: 29692046 | AS98: 32854687 | AT98: 37815366 | AU98: 33207011 | AV98: 37077836 | AW98: 47867156 | AX98: 49693789 | AY98: 57823752 | AZ98: 62837632 | BA98: 69074445 | BB98: 72478528 | BC98: =BC24 -> 75287498 | BD98: 80343753
C103: Sources/Notes:
C104: 1/ Excludes horses, mules, and broilers.
C105: 2/ Include only farm share value for trucks and autos.
C106: 3/ All non-CCC crops held on farms plus the value above loan rate
C107: for crops held under CCC.
C108: 4/ Excludes debt for nonfarm purposes.
C109: 5/ Farmers Home Administration prior to 1994.
C110: (f) forecasted and subject to revision
C111: Economic Research Service/USDA.

Sheet Sample Graphs
D18: 15 | K18: 13 | S18: 13

Sheet Balance Sheet Table
B3: Table 1. Selected Balance Sheet Characteristics of US Agricultural Sector
D5: ='US AG B-S Background Data'!N7 -> 1970 | E5: ='US AG B-S Background Data'!X7 -> 1980 | F5: ='US AG B-S Background Data'!AH7 -> 1990 | G5: ='US AG B-S Background Data'!AR7 -> 2000 | H5: ='US AG B-S Background Data'!BB7 -> 2010 | I5: 2013 | J5: 2015 | K5: 2016 | L5: 2017 | M5: 2018 | N5: 2019 | O5: 2020 | P5: 2021 | Q5: 2022 | R5: 2023(p)
G6: ($ millions, except ratios - source ERS-USDA)
B7: Farm Assets | D7: =('US AG B-S Background Data'!N13)/1000 -> 278823.015 | E7: =('US AG B-S Background Data'!X13)/1000 -> 1000422.127 | F7: =('US AG B-S Background Data'!AH13)/1000 -> 840608.505 | G7: =('US AG B-S Background Data'!AR13)/1000 -> 1203214.765 | H7: =('US AG B-S Background Data'!BB13)/1000 -> 2170832.085 | I7: =('US AG B-S Background Data'!BE13)/1000 -> 2767754.249 | J7: =('US AG B-S Background Data'!BG13)/1000 -> 2880014.647 | K7: =('US AG B-S Background Data'!BH13)/1000 -> 2914440.909 | L7: =('US AG B-S Background Data'!BI13)/1000 -> 3005944.863 | M7: =('US AG B-S Background Data'!BJ13)/1000 -> 3026678.682 | N7: =('US AG B-S Background Data'!BK13)/1000 -> 3075148.145 | O7: =('US AG B-S Background Data'!BL13)/1000 -> 3174623.195 | P7: =('US AG B-S Background Data'!BM13)/1000 -> 3497614.24 | Q7: =('US AG B-S Background Data'!BN13)/1000 -> 3848184.726 | R7: =('US AG B-S Background Data'!BO13)/1000 -> 4047027.328
B8: Real Estate | D8: =('US AG B-S Background Data'!N14)/1000 -> 202418.081 | E8: =('US AG B-S Background Data'!X14)/1000 -> 782820.207 | F8: =('US AG B-S Background Data'!AH14)/1000 -> 619149.24 | G8: =('US AG B-S Background Data'!AR14)/1000 -> 946427.649 | H8: =('US AG B-S Background Data'!BB14)/1000 -> 1660113.798 | I8: =('US AG B-S Background Data'!BE14)/1000 -> 2251001.916 | J8: =('US AG B-S Background Data'!BG14)/1000 -> 2365717.294 | K8: =('US AG B-S Background Data'!BH14)/1000 -> 2401352.455 | L8: =('US AG B-S Background Data'!BI14)/1000 -> 2472843.963 | M8: =('US AG B-S Background Data'!BJ14)/1000 -> 2510163.458 | N8: =('US AG B-S Background Data'!BK14)/1000 -> 2545995.513 | O8: =('US AG B-S Background Data'!BL14)/1000 -> 2640942.455 | P8: =('US AG B-S Background Data'!BM14)/1000 -> 2895998.249 | Q8: =('US AG B-S Background Data'!BN14)/1000 -> 3188219.412 | R8: =('US AG B-S Background Data'!BO14)/1000 -> 3389550.688
B9: Non Real Estate | D9: =D7-D8 -> 76404.934 | E9: =E7-E8 -> 217601.92 | F9: 221459.265 | G9: =G7-G8 -> 256787.116 | H9: =H7-H8 -> 510718.287 | I9: =I7-I8 -> 516752.333 | J9: =J7-J8 -> 514297.353 | K9: 513088.454 | L9: 533100.9 | M9: 516515.224 | N9: 529152.632 | O9: 533680.74 | P9: 601615.991 | Q9: 659965.314 | R9: 657476.64
B11: Farm Debt | D11: =('US AG B-S Background Data'!N22)/1000 -> 48501.007 | E11: =('US AG B-S Background Data'!X22)/1000 -> 162431.968 | F11: =('US AG B-S Background Data'!AH22)/1000 -> 131115.795 | G11: =('US AG B-S Background Data'!AR22)/1000 -> 163929.823 | H11: =('US AG B-S Background Data'!BB22)/1000 -> 278930.534 | I11: =('US AG B-S Background Data'!BE22)/1000 -> 315332.488 | J11: =('US AG B-S Background Data'!BG22)/1000 -> 356738.041 | K11: =('US AG B-S Background Data'!BH22)/1000 -> 374164.212 | L11: =('US AG B-S Background Data'!BI22)/1000 -> 390425.223 | M11: =('US AG B-S Background Data'!BJ22)/1000 -> 402605.504 | N11: =('US AG B-S Background Data'!BK22)/1000 -> 420494.8 | O11: =('US AG B-S Background Data'!BL22)/1000 -> 441253.793 | P11: =('US AG B-S Background Data'!BM22)/1000 -> 474115.801 | Q11: =('US AG B-S Background Data'!BN22)/1000 -> 503894.666 | R11: =('US AG B-S Background Data'!BO22)/1000 -> 535085.785
B12: Real Estate | D12: =('US AG B-S Background Data'!N23)/1000 -> 27238.348 | E12: =('US AG B-S Background Data'!X23)/1000 -> 85272.367 | F12: =('US AG B-S Background Data'!AH23)/1000 -> 67632.973 | G12: =('US AG B-S Background Data'!AR23)/1000 -> 84723.763 | H12: =('US AG B-S Background Data'!BB23)/1000 -> 154065.225 | I12: =('US AG B-S Background Data'!BE23)/1000 -> 185160.53 | J12: =('US AG B-S Background Data'!BG23)/1000 -> 208769.246 | K12: =('US AG B-S Background Data'!BH23)/1000 -> 225980.433 | L12: =('US AG B-S Background Data'!BI23)/1000 -> 236243.057 | M12: =('US AG B-S Background Data'!BJ23)/1000 -> 245773.538 | N12: =('US AG B-S Background Data'!BK23)/1000 -> 267943.655 | O12: =('US AG B-S Background Data'!BL23)/1000 -> 288645.325 | P12: =('US AG B-S Background Data'!BM23)/1000 -> 324257.298 | Q12: =('US AG B-S Background Data'!BN23)/1000 -> 349067.861 | R12: =('US AG B-S Background Data'!BO23)/1000 -> 375860.118
B13: Non Real Estate | D13: =(D11-D12) -> 21262.659 | E13: =(E11-E12) -> 77159.601 | F13: 63482.822 | G13: 79206.06 | H13: 124865.309 | I13: 130171.958 | J13: =(J11-J12) -> 147968.795 | K13: 148183.779 | L13: 154182.166 | M13: 156831.966 | N13: 152551.145 | O13: 152608.468 | P13: 149858.503 | Q13: 154826.805 | R13: 159225.667
B15: Equity | D15: =(D7-D11) -> 230322.008 | E15: =(E7-E11) -> 837990.159 | F15: 709492.71 | G15: 1039284.942 | H15: 1891901.551 | I15: 2452421.761 | J15: =(J7-J11) -> 2523276.606 | K15: 2540276.697 | L15: 2615519.64 | M15: 2624073.178 | N15: 2654653.345 | O15: 2733369.402 | P15: 3023498.439 | Q15: 3344290.06 | R15: 3511941.543
B17: Selected Indicators
B18: Debt/Equity | D18: ='US AG B-S Background Data'!N43 -> 0.2105791254 | E18: ='US AG B-S Background Data'!X43 -> 0.1938351737 | F18: ='US AG B-S Background Data'!AH43 -> 0.1848021737 | G18: ='US AG B-S Background Data'!AR43 -> 0.1577332802 | H18: ='US AG B-S Background Data'!BB43 -> 0.1474339581 | I18: ='US AG B-S Background Data'!BE43 -> 0.1285800399 | J18: ='US AG B-S Background Data'!BG43 -> 0.1413788882 | K18: ='US AG B-S Background Data'!BH43 -> 0.1472926994 | L18: ='US AG B-S Background Data'!BI43 -> 0.1492725258 | M18: ='US AG B-S Background Data'!BJ43 -> 0.1534276968 | N18: ='US AG B-S Background Data'!BK43 -> 0.1583991374 | O18: ='US AG B-S Background Data'!BL43 -> 0.1614321843 | P18: ='US AG B-S Background Data'!BM43 -> 0.1568103343 | Q18: ='US AG B-S Background Data'!BN43 -> 0.1506731344 | R18: ='US AG B-S Background Data'!BO43 -> 0.1523618142
B19: Debt/Assets | D19: ='US AG B-S Background Data'!N44 -> 0.1739490802 | E19: ='US AG B-S Background Data'!X44 -> 0.16236343 | F19: ='US AG B-S Background Data'!AH44 -> 0.1559772406 | G19: ='US AG B-S Background Data'!AR44 -> 0.1362431943 | H19: ='US AG B-S Background Data'!BB44 -> 0.1284901471 | I19: ='US AG B-S Background Data'!BE44 -> 0.1139308116 | J19: ='US AG B-S Background Data'!BG44 -> 0.1238667454 | K19: ='US AG B-S Background Data'!BH44 -> 0.1283828438 | L19: ='US AG B-S Background Data'!BI44 -> 0.1298843594 | M19: ='US AG B-S Background Data'!BJ44 -> 0.1330189116 | N19: ='US AG B-S Background Data'!BK44 -> 0.1367396887 | O19: ='US AG B-S Background Data'!BL44 -> 0.1389940682 | P19: ='US AG B-S Background Data'!BM44 -> 0.1355540573 | Q19: ='US AG B-S Background Data'!BN44 -> 0.1309434712 | R19: ='US AG B-S Background Data'!BO44 -> 0.1322169933
B20: Real Estate/Equity | D20: ='US AG B-S Background Data'!N45 -> 0.878848195 | E20: ='US AG B-S Background Data'!X45 -> 0.9341639619 | F20: ='US AG B-S Background Data'!AH45 -> 0.8726646959 | G20: ='US AG B-S Background Data'!AR45 -> 0.9106527101 | H20: ='US AG B-S Background Data'!BB45 -> 0.8774842418 | I20: ='US AG B-S Background Data'!BE45 -> 0.9178690027 | J20: ='US AG B-S Background Data'!BG45 -> 0.9375576539 | K20: ='US AG B-S Background Data'!BH45 -> 0.9453113741 | L20: ='US AG B-S Background Data'!BI45 -> 0.9454503515 | M20: ='US AG B-S Background Data'!BJ45 -> 0.9565904938 | N20: ='US AG B-S Background Data'!BK45 -> 0.9590689187 | O20: ='US AG B-S Background Data'!BL45 -> 0.9661857095 | P20: ='US AG B-S Background Data'!BM45 -> 0.9578302445 | Q20: ='US AG B-S Background Data'!BN45 -> 0.9533322032 | R20: ='US AG B-S Background Data'!BO45 -> 0.9651500876
B21: Real Estate/Assets | D21: ='US AG B-S Background Data'!N46 -> 0.7259733598 | E21: ='US AG B-S Background Data'!X46 -> 0.7824898969 | F21: ='US AG B-S Background Data'!AH46 -> 0.7365488647 | G21: ='US AG B-S Background Data'!AR46 -> 0.786582476 | H21: ='US AG B-S Background Data'!BB46 -> 0.7647361624 | I21: ='US AG B-S Background Data'!BE46 -> 0.8132954423 | J21: ='US AG B-S Background Data'!BG46 -> 0.8214254384 | K21: ='US AG B-S Background Data'!BH46 -> 0.8239496116 | L21: ='US AG B-S Background Data'!BI46 -> 0.8226511382 | M21: ='US AG B-S Background Data'!BJ46 -> 0.8293458678 | N21: ='US AG B-S Background Data'!BK46 -> 0.8279261333 | O21: ='US AG B-S Background Data'!BL46 -> 0.8318916271 | P21: ='US AG B-S Background Data'!BM46 -> 0.8279924687 | Q21: ='US AG B-S Background Data'!BN46 -> 0.8284995755 | R21: ='US AG B-S Background Data'!BO46 -> 0.837540845
B22: Real Estate D/Total D | D22: ='US AG B-S Background Data'!N47 -> 0.5616037622 | E22: ='US AG B-S Background Data'!X47 -> 0.524972812 | F22: ='US AG B-S Background Data'!AH47 -> 0.5158262816 | G22: ='US AG B-S Background Data'!AR47 -> 0.5168294667 | H22: ='US AG B-S Background Data'!BB47 -> 0.5523426309 | I22: ='US AG B-S Background Data'!BE47 -> 0.5871914156 | J22: ='US AG B-S Background Data'!BG47 -> 0.5852172239 | K22: ='US AG B-S Background Data'!BH47 -> 0.603960576 | L22: ='US AG B-S Background Data'!BI47 -> 0.6050916874 | M22: ='US AG B-S Background Data'!BJ47 -> 0.6104574715 | N22: ='US AG B-S Background Data'!BK47 -> 0.6372103888 | O22: ='US AG B-S Background Data'!BL47 -> 0.654148088 | P22: ='US AG B-S Background Data'!BM47 -> 0.6839200409 | Q22: ='US AG B-S Background Data'!BN47 -> 0.6927397422 | R22: ='US AG B-S Background Data'!BO47 -> 0.702429645

Sheet graphhelp - BJS (hidden)
C3: Table 1--Farm business balance sheet, 1960-2019f
C5: United States
C7: Year | D7: 1960 | E7: 1961 | F7: 1962 | G7: 1963 | H7: 1964 | I7: 1965 | J7: 1966 | K7: 1967 | L7: 1968 | M7: 1969 | N7: 1970 | O7: 1971 | P7: 1972 | Q7: 1973 | R7: 1974 | S7: 1975 | T7: 1976 | U7: 1977 | V7: 1978 | W7: 1979 | X7: 1980 | Y7: 1981 | Z7: 1982 | AA7: 1983 | AB7: 1984 | AC7: 1985 | AD7: 1986 | AE7: 1987 | AF7: 1988 | AG7: 1989 | AH7: 1990 | AI7: 1991 | AJ7: 1992 | AK7: 1993 | AL7: 1994 | AM7: 1995 | AN7: 1996 | AO7: 1997 | AP7: 1998 | AQ7: 1999 | AR7: 2000 | AS7: 2001 | AT7: 2002 | AU7: 2003 | AV7: 2004 | AW7: 2005 | AX7: 2006 | AY7: 2007 | AZ7: 2008 | BA7: 2009 | BB7: 2010 | BC7: 2011 | BD7: 2012 | BE7: 2013 | BF7: 2014 | BG7: 2015 | BH7: 2016 | BI7: 2017 | BJ7: 2018 | BK7: 2019
H9: Numbers | R9: Numbers | AB9: Numbers | AL9: Numbers
C11: Number of Farms | D11: 3962520 | E11: 3825410 | F11: 3692410 | G11: 3572200 | H11: 3456690 | I11: 3356170 | J11: 3257040 | K11: 3161730 | L11: 3070860 | M11: 3000180 | N11: 2949140 | O11: 2902310 | P11: 2859880 | Q11: 2823260 | R11: 2795460 | S11: 2521420 | T11: 2497270 | U11: 2455830 | V11: 2436250 | W11: 2437300 | X11: 2439510 | Y11: 2439920 | Z11: 2406550 | AA11: 2378620 | AB11: 2333810 | AC11: 2292530 | AD11: 2249820 | AE11: 2212960 | AF11: 2200940 | AG11: 2174520 | AH11: 2145820 | AI11: 2116760 | AJ11: 2107840 | AK11: 2201590 | AL11: 2197690 | AM11: 2196400 | AN11: 2190500 | AO11: 2190510 | AP11: 2192330 | AQ11: 2187280 | AR11: 2166780 | AS11: 2148630 | AT11: 2135360 | AU11: 2126860 | AV11: 2112970 | AW11: 2098690 | AX11: 2088790 | AY11: 2204600 | AZ11: 2184500 | BA11: 2169660 | BB11: 2149520 | BC11: 2131240 | BD11: 2109810 | BE11: 2102010 | BF11: 2082440 | BG11: 2063890 | BH11: 2055340 | BI11: 2042000 | BJ11: 2029200 | BK11: (not available)
H12: Thousand dollars | R12: Thousand dollars | AB12: Thousand dollars | AL12: Thousand dollars
C13: Year | D13: 1960 | E13: 1961 | F13: 1962 | G13: 1963 | H13: 1964 | I13: 1965 | J13: 1966 | K13: 1967 | L13: 1968 | M13: 1969 | N13: 1970 | O13: 1971 | P13: 1972 | Q13: 1973 | R13: 1974 | S13: 1975 | T13: 1976 | U13: 1977 | V13: 1978 | W13: 1979 | X13: 1980 | Y13: 1981 | Z13: 1982 | AA13: 1983 | AB13: 1984 | AC13: 1985 | AD13: 1986 | AE13: 1987 | AF13: 1988 | AG13: 1989 | AH13: 1990 | AI13: 1991 | AJ13: 1992 | AK13: 1993 | AL13: 1994 | AM13: 1995 | AN13: 1996 | AO13: 1997 | AP13: 1998 | AQ13: 1999 | AR13: 2000 | AS13: 2001 | AT13: 2002 | AU13: 2003 | AV13: 2004 | AW13: 2005 | AX13: 2006 | AY13: 2007 | AZ13: 2008 | BA13: 2009 | BB13: 2010 | BC13: 2011 | BD13: 2012 | BE13: 2013 | BF13: 2014 | BG13: 2015 | BH13: 2016 | BI13: 2017 | BJ13: 2018 | BK13: 2019 | BL13: 2020
C14: Farm assets | D14: 174350138 | E14: 181631733 | F14: 188870449 | G14: 196695336 | H14: 204238278 | I14: 220817624 | J14: 234022906 | K14: 246072706 | L14: 257160621 | M14: 267822833 | N14: 278823015 | O14: 301760581 | P14: 339933247 | Q14: 418493949 | R14: 449181770 | S14: 510786259 | T14: 590716642 | U14: 651508183 | V14: 777744402 | W14: 914682365 | X14: 1000422127 | Y14: 997897469 | Z14: 962488416 | AA14: 959300462 | AB14: 897811233 | AC14: 775907905 | AD14: 722017259 | AE14: 756478652 | AF14: 788525662 | AG14: 813731058 | AH14: 840608505 | AI14: 844167552 | AJ14: 867762818 | AK14: 909174821 | AL14: 934724297 | AM14: 965741060 | AN14: 1002916227 | AO14: 1051280908 | AP14: 1083354897 | AQ14: 1138826915 | AR14: 1203214765 | AS14: 1255926409 | AT14: 1250530486 | AU14: 1322433781 | AV14: 1491953134 | AW14: 1709371086 | AX14: 1906665033 | AY14: 1961943172 | AZ14: 2005861900 | BA14: 1976913105 | BB14: 2170832085 | BC14: 2318720178 | BD14: 2638237199 | BE14: 2776109588 | BF14: 2949238467 | BG14: 2909653173 | BH14: 2956537719 | BI14: 2993054674 | BJ14: 3032752620 | BK14: 3075150919 | BL14: 3108826924
C15: Real estate assets | D15: 123280105 | E15: 129097425 | F15: 134614477 | G15: 142353253 | H15: 150485891 | I15: 161524641 | J15: 171233350 | K15: 180942601 | L15: 189388755 | M15: 195309483 | N15: 202418081 | O15: 217562382 | P15: 243002153 | Q15: 298300207 | R15: 335556227 | S15: 383559733 | T15: 456539435 | U15: 509308292 | V15: 601773349 | W15: 706063787 | X15: 782820207 | Y15: 785561830 | Z15: 750023254 | AA15: 753422019 | AB15: 661750215 | AC15: 586183371 | AD15: 542407976 | AE15: 563678551 | AF15: 582311234 | AG15: 600132424 | AH15: 619149240 | AI15: 624769057 | AJ15: 640790780 | AK15: 677577858 | AL15: 704137650 | AM15: 740491453 | AN15: 769535891 | AO15: 808228878 | AP15: 840421562 | AQ15: 886981055 | AR15: 946427649 | AS15: 996242486 | AT15: 1003708881 | AU15: 1016350076 | AV15: 1161561634 | AW15: 1372626160 | AX15: 1536641152 | AY15: 1548985369 | AZ15: 1568551418 | BA15: 1560555911 | BB15: 1660113798 | BC15: 1802702005 | BD15: 2073664481 | BE15: 2251001916 | BF15: 2383150407 | BG15: 2395363130 | BH15: 2443444432 | BI15: 2469495245 | BJ15: 2519026381 | BK15: 2545995513 | BL15: 2575178351
C16: Livestock and poultry | D16: 15607597 | E16: 16428026 | F16: 17306979 | G16: 15864578 | H16: 14469305 | I16: 17584671 | J16: 18973530 | K16: 18845528 | L16: 20249055 | M16: 22838634 | N16: 23705761 | O16: 27263869 | P16: 33679316 | Q16: 42370002 | R16: 24567475 | S16: 29356695 | T16: 29047508 | U16: 31931218 | V16: 50105786 | W16: 61386773 | X16: 60633203 | Y16: 53544275 | Z16: 52993051 | AA16: 49540878 | AB16: 49525922 | AC16: 46259169 | AD16: 47751409 | AE16: 57976580 | AF16: 62211338 | AG16: 66212752 | AH16: 70856057 | AI16: 68119760 | AJ16: 70962162 | AK16: 72778679 | AL16: 67912189 | AM16: 57778086 | AN16: 60314851 | AO16: 67075193 | AP16: 63391480 | AQ16: 73177382 | AR16: 76787712 | AS16: 78535901 | AT16: 67877550 | AU16: 74506996 | AV16: 83334116 | AW16: 87758593 | AX16: 86698438 | AY16: 89358661 | AZ16: 86198460 | BA16: 80267748 | BB16: 90715139 | BC16: 101446630 | BD16: 95743147 | BE16: 110836501 | BF16: 127852850 | BG16: 118182982 | BH16: 108995849 | BI16: 115101418 | BJ16: =BJ14-BJ21 -> 104920785 | BK16: 99161769 | BL16: 90655767
C17: Machinery and motor vehicles | D17: 19068447 | E17: 19270293 | F17: 19902285 | G17: 20372604 | H17: 21247171 | I17: 22428938 | J17: 24067400 | K17: 26310099 | L17: 27744429 | M17: 28634424 | N17: 30363934 | O17: 32434438 | P17: 34644365 | Q17: 39670896 | R17: 48454284 | S17: 57417012 | T17: 63275288 | U17: 69319935 | V17: 78837918 | W17: 91924442 | X17: 97463497 | Y17: 101121601 | Z17: 103853547 | AA17: 101707294 | AB17: 125844857 | AC17: 86076967 | AD17: 79030185 | AE17: 78686237 | AF17: 80976113 | AG17: 84090265 | AH17: 86297804 | AI17: 85892466 | AJ17: 84805549 | AK17: 85391600 | AL17: 86761586 | AM17: 87591746 | AN17: 88030611 | AO17: 88744926 | AP17: 89824706 | AQ17: 89847429 | AR17: 90104683 | AS17: 92804006 | AT17: 136624880 | AU17: 137871242 | AV17: 149334862 | AW17: 144343034 | AX17: 155337507 | AY17: 194783471 | AZ17: 189086640 | BA17: 191600286 | BB17: 207604913 | BC17: 223814646 | BD17: 243966688 | BE17: 247342759 | BF17: 245724348 | BG17: 239513055 | BH17: 255448333 | BI17: 260524825 | BJ17: 267457173 | BK17: 278991092 | BL17: 287315670
C18: Crops | D18: 6359991 | E18: 6471987 | F18: 6527710 | G18: 7408814 | H18: 7012635 | I18: 7892957 | J18: 8107008 | K18: 8016152 | L18: 7393262 | M18: 8278635 | N18: 8700574 | O18: 9950744 | P18: 12949001 | Q18: 21379362 | R18: 22515224 | S18: 20535165 | T18: 20584873 | U18: 20443929 | V18: 23800687 | W18: 29876331 | X18: 32831043 | Y18: 29511813 | Z18: 25885600 | AA18: 23746340 | AB18: 26128956 | AC18: 22904647 | AD18: 16279821 | AE18: 17828174 | AF18: 23651022 | AG18: 23936470 | AH18: 23178199 | AI18: 22238486 | AJ18: 24208624 | AK18: 23325867 | AL18: 23297793 | AM18: 27445606 | AN18: 31692878 | AO18: 32670319 | AP18: 29939741 | AQ18: 28273037 | AR18: 27932428 | AS18: 25238556 | AT18: 11699174 | AU18: 26693037 | AV18: 29607523 | AW18: 33402678 | AX18: 41144457 | AY18: 54231798 | AZ18: 58759139 | BA18: 53423542 | BB18: 57218624 | BC18: 62461649 | BD18: 64766997 | BE18: 60458074 | BF18: 61724815 | BG18: 52534478 | BH18: 55687058 | BI18: 56940618 | BJ18: 49412836 | BK18: 49595285 | BL18: 49017006
C19: Purchased inputs | AB19: 1977708 | AC19: 1209904 | AD19: 2067459 | AE19: 3152585 | AF19: 3459088 | AG19: 2574449 | AH19: 2807529 | AI19: 2610686 | AJ19: 3946496 | AK19: 3789676 | AL19: 5036672 | AM19: 3371612 | AN19: 4361892 | AO19: 4900371 | AP19: 5036405 | AQ19: 4025649 | AR19: 4895715 | AS19: 4212374 | AT19: 11213419 | AU19: 9478695 | AV19: 10494785 | AW19: 10735654 | AX19: 11744226 | AY19: 15953866 | AZ19: 19499249 | BA19: 18749862 | BB19: 19836910 | BC19: 20985068 | BD19: 21460770 | BE19: 20577855 | BF19: 20100471 | BG19: 16398071 | BH19: 14881465 | BI19: 16163101 | BJ19: 16842242 | BK19: 13927352 | BL19: 13838565
C20: Financial | D20: 10033998 | E20: 10364002 | F20: 10518998 | G20: 10696087 | H20: 11023276 | I20: 11386417 | J20: 11641618 | K20: 11958326 | L20: 12385120 | M20: 12761657 | N20: 13634665 | O20: 14549148 | P20: 15658412 | Q20: 16773482 | R20: 18088560 | S20: 19917653 | T20: 21269538 | U20: 20504809 | V20: 23226663 | W20: 25431031 | X20: 26674177 | Y20: 28157950 | Z20: 29732964 | AA20: 30883931 | AB20: 32583575 | AC20: 33273848 | AD20: 34480410 | AE20: 35156525 | AF20: 35916867 | AG20: 36784698 | AH20: 38319676 | AI20: 40537097 | AJ20: 43049207 | AK20: 46311141 | AL20: 47578407 | AM20: 49062556 | AN20: 48980104 | AO20: 49661221 | AP20: 54741003 | AQ20: 56522362 | AR20: 57066578 | AS20: 58893086 | AT20: 19406583 | AU20: 57533735 | AV20: 57620214 | AW20: 60504967 | AX20: 75099252 | AY20: 58630007 | AZ20: 83766993 | BA20: 72315756 | BB20: 135342700 | BC20: 107310180 | BD20: 138635115 | BE20: 85892484 | BF20: 110685576 | BG20: 87661457 | BH20: 78080582 | BI20: 82722065 | BJ20: 75093203 | BK20: 87479909 | BL20: 92821565
BE21: =SUM(BE15:BE20) -> 2776109589 | BF21: =SUM(BF15:BF20) -> 2949238467 | BG21: 2909653173 | BH21: 2956537719 | BI21: 3000947272 | BJ21: 2927831835 | BK21: 2971597967 | BL21: =SUM(BL15:BL20) -> 3108826924
C23: Farm debt | D23: 22445666 | E23: 24138318 | F23: 26665409 | G23: 29560942 | H23: 32157241 | I23: 35810786 | J23: 39223095 | K23: 42206120 | L23: 43921577 | M23: 46420826 | N23: 48501007 | O23: 52825068 | P23: 58099688 | Q23: 66768652 | R23: 74672687 | S23: 83503739 | T23: 94137390 | U23: 108404445 | V23: 123865621 | W23: 147520227 | X23: 162431968 | Y23: 177687478 | Z23: 183962996 | AA23: 186178117 | AB23: 188813336 | AC23: 172154536 | AD23: 151307822 | AE23: 138507402 | AF23: 133138349 | AG23: 131030402 | AH23: 131115795 | AI23: 131872783 | AJ23: 131565813 | AK23: 134311580 | AL23: 138929055 | AM23: 142985255 | AN23: 148572756 | AO23: 156907377 | AP23: 164626313 | AQ23: 167696145 | AR23: 163929823 | AS23: 170664446 | AT23: 187029013 | AU23: 181095940 | AV23: 197577630 | AW23: 209073394 | AX23: 215684913 | AY23: 240735957 | AZ23: 261063115 | BA23: 268346578 | BB23: 278930534 | BC23: 294472133 | BD23: 297521123 | BE23: 315332488 | BF23: 345201354 | BG23: 356738041 | BH23: 374164212 | BI23: 393048069 | BJ23: 410842987 | BK23: 418594843 | BL23: 433750810
C24: Real estate debt | D24: 11309593 | E24: 12318392 | F24: 13488450 | G24: 14981360 | H24: 16850311 | I24: 18915889 | J24: 20696043 | K24: 22613532 | L24: 24729257 | M24: 26415866 | N24: 27238348 | O24: 28826497 | P24: 31379625 | Q24: 35188298 | R24: 39563003 | S24: 43750962 | T24: 48484701 | U24: 55834463 | V24: 63424623 | W24: 75778090 | X24: 85272367 | Y24: 93905270 | Z24: 96769083 | AA24: 98071338 | AB24: 101393312 | AC24: 94089977 | AD24: 84087662 | AE24: 75809859 | AF24: 70829423 | AG24: 68761420 | AH24: 67632973 | AI24: 67449880 | AJ24: 67879337 | AK24: 68432731 | AL24: 69911852 | AM24: 71722937 | AN24: 74422235 | AO24: 78513555 | AP24: 83100263 | AQ24: 87206087 | AR24: 84723763 | AS24: 88541011 | AT24: 98118184 | AU24: 97396385 | AV24: 104161951 | AW24: 113886209 | AX24: 113365478 | AY24: 131710955 | AZ24: 147901855 | BA24: 145979853 | BB24: 154065225 | BC24: 167190768 | BD24: 173368636 | BE24: 185160530 | BF24: 196780224 | BG24: 208769246 | BH24: 225980433 | BI24: 238058397 | BJ24: 250866892 | BK24: 266840441 | BL24: 281559130
C25: Farm Credit System | D25: 2222301 | E25: 2462512 | F25: 2666963 | G25: 2905293 | H25: 3266651 | I25: 3766421 | J25: 4388901 | K25: 4970937 | L25: 5433762 | M25: 5976804 | N25: 6368922 | O25: 7000181 | P25: 8014159 | Q25: 9616844 | R25: 11839517 | S25: 14043688 | T25: 16223152 | U25: 18771473 | V25: 21566850 | W25: 25969746 | X25: 31575578 | Y25: 38293671 | Z25: 41493247 | AA25: 42124283 | AB25: 44266085 | AC25: 39638435 | AD25: 33101061 | AE25: 28194451 | AF25: 25885360 | AG25: 24340814 | AH25: 23461664 | AI25: 22774771 | AJ25: 22866792 | AK25: 22409618 | AL25: 22137036 | AM25: 22480484 | AN25: 23450202 | AO25: 24924671 | AP25: 26787599 | AQ25: 28044751 | AR25: 29692046 | AS25: 32854687 | AT25: 37815366 | AU25: 33207011 | AV25: 37077836 | AW25: 47867156 | AX25: 49693789 | AY25: 57823752 | AZ25: 62837632 | BA25: 69074445 | BB25: 72478528 | BC25: 75287498 | BD25: 80343753 | BE25: 85250722 | BF25: 88797518 | BG25: 96662553 | BH25: 103749537 | BI25: 107653783 | BJ25: 113445987.6 | BK25: 119228380 | BL25: =BK25/$BK$24*$BL$24 -> 125804914.8
C26: Farm Service Agency | D26: 623895 | E26: 822065 | F26: 921154 | G26: 1024496 | H26: 1125457 | I26: 1314537 | J26: 1467783 | K26: 1636188 | L26: 1824883 | M26: 2028788 | N26: 2168992 | O26: 2319457 | P26: 2505520 | Q26: 2653508 | R26: 2821357 | S26: 2946795 | T26: 3189606 | U26: 3462207 | V26: 3571420 | W26: 5967133 | X26: 7094800 | Y26: 7726319 | Z26: 7922736 | AA26: 8186795 | AB26: 9046439 | AC26: 9231655 | AD26: 9033182 | AE26: 8675678 | AF26: 8171569 | AG26: 7423909 | AH26: 6913726 | AI26: 6336758 | AJ26: 5755007 | AK26: 5253647 | AL26: 4918556 | AM26: 4572770 | AN26: 4285372 | AO26: 4021975 | AP26: 3777265 | AQ26: 3583694 | AR26: 3418223 | AS26: 3347374 | AT26: 3181000 | AU26: 2178000 | AV26: 2396000 | AW26: 2453000 | AX26: 2374000 | AY26: 2555846 | AZ26: 2464998 | BA26: 2637349 | BB26: 3475437 | BC26: 3334494 | BD26: 3743238 | BE26: 3717074 | BF26: 4325689 | BG26: 4857770 | BH26: 5914514 | BI26: 6054097 | BJ26: 6379831.661 | BK26: 6705014.516 | BL26: 7074857.345
C27: Farmer Mac | AT27: 325693 | AU27: 915788 | AV27: 862208 | AW27: 770356 | AX27: 1454272 | AY27: 2829805 | AZ27: 2427239 | BA27: 2069175 | BB27: 3600592 | BC27: 3770165 | BD27: 3811537 | BE27: 4481629 | BF27: 4728807 | BG27: 4843551 | BH27: 5456587 | BI27: 6266206 | BJ27: 6603352.974 | BK27: 6939928.811 | BL27: 7322729.309
C28: Commercial banks | D28: 1355733 | E28: 1401691 | F28: 1606938 | G28: 1844126 | H28: 2090051 | I28: 2259905 | J28: 2418179 | K28: 2676543 | L28: 2918582 | M28: 3115947 | N28: 3333945 | O28: 3716254 | P28: 4207609 | Q28: 4774637 | R28: 5204225 | S28: 5475971 | T28: 5884076 | U28: 6734576 | V28: 7388580 | W28: 7463130 | X28: 7430446 | Y28: 7252783 | Z28: 7238966 | AA28: 7979692 | AB28: 9145059 | AC28: 10087966 | AD28: 11106298 | AE28: 12458128 | AF28: 13134654 | AG28: 14195364 | AH28: 14740757 | AI28: 15674874 | AJ28: 16881167 | AK28: 17635101 | AL28: 18971234 | AM28: 20151323 | AN28: 21213695 | AO28: 23215498 | AP28: 25193180 | AQ28: 27578839 | AR28: 29756973 | AS28: 31082102 | AT28: 30421980 | AU28: 31980000 | AV28: 34891305 | AW28: 37166558 | AX28: 37455038 | AY28: 41061877 | AZ28: 46395506 | BA28: 44244248 | BB28: 51227807 | BC28: 52946233 | BD28: 64559493 | BE28: 68903134 | BF28: 73254162 | BG28: 79163795 | BH28: 84417512 | BI28: 73294843 | BJ28: 77238399.04 | BK28: 81175274.58 | BL28: 85652832.84
C29: Life insurance companies | D29: 2651587 | E29: 2828152 | F29: 3043385 | G29: 3405403 | H29: 3865756 | I29: 4339266 | J29: 4727763 | K29: 5034086 | L29: 5235614 | M29: 5222116 | N29: 5038804 | O29: 4980919 | P29: 5035955 | Q29: 5304091 | R29: 5581876 | S29: 5938785 | T29: 6511942 | U29: 7735190 | V29: 9160409 | W29: 10654407 | X29: 11337301 | Y29: 11482287 | Z29: 11171688 | AA29: 11016282 | AB29: 11296552 | AC29: 10596325 | AD29: 9650671 | AE29: 8606627 | AF29: 8225845 | AG29: 8247377 | AH29: 8782095 | AI29: 8591225 | AJ29: 7888515 | AK29: 8086943 | AL29: 8122623 | AM29: 8224581 | AN29: 8629197 | AO29: 8920956 | AP29: 9943629 | AQ29: 10633978 | AR29: 11053300 | AS29: 11205391 | AT29: 11421000 | AU29: 10026000 | AV29: 10726000 | AW29: 11307000 | AX29: 12001000 | AY29: 10806203 | AZ29: 13737226 | BA29: 13291178 | BB29: 12436849 | BC29: 13003744 | BD29: 11487490 | BE29: 11977097 | BF29: 12403795 | BG29: 12527497 | BH29: 13204121 | BI29: 13787714 | BJ29: 14529548.22 | BK29: 15270125.75 | BL29: 16112412.74
C30: Individuals and others | D30: 4408545 | E30: 4734961 | F30: 5176176 | G30: 5742101 | H30: 6458587 | I30: 7201849 | J30: 7660952 | K30: 8234921 | L30: 9169138 | M30: 9902199 | N30: 10181409 | O30: 10619908 | P30: 11350228 | Q30: 12561253 | R30: 13899119 | S30: 15175336 | T30: 16532391 | U30: 18639262 | V30: 20589756 | W30: 24332811 | X30: 26377883 | Y30: 27808051 | Z30: 27815219 | AA30: 27876341 | AB30: 27016085 | AC30: 24228530 | AD30: 21073725 | AE30: 17829262 | AF30: 15391379 | AG30: 14542381 | AH30: 13728224 | AI30: 14068465 | AJ30: 14485871 | AK30: 15047423 | AL30: 15762403 | AM30: 16293778 | AN30: 16843769 | AO30: 17430456 | AP30: 17398591 | AQ30: 17364826 | AR30: 10803221 | AS30: 10051456 | AT30: 14953145 | AU30: 18893637 | AV30: 17982825 | AW30: 14072424 | AX30: 10115426 | AY30: 16286248 | AZ30: 19648041 | BA30: 14190626 | BB30: 10211729 | BC30: 18126226 | BD30: 8689061 | BE30: 10084246 | BF30: 12517927 | BG30: 9956273 | BH30: 12494207 | BI30: 13046423.36 | BJ30: 13748373.18 | BK30: 14449133.87 | BL30: 15246135.66
C31: CCC storage & drying loans | D31: 47523 | E31: 69006 | F31: 73829 | G31: 59932 | H31: 43809 | I31: 33915 | J31: 32456 | K31: 60850 | L31: 147276 | M31: 170016 | N31: 146276 | O31: 189778 | P31: 266154 | Q31: 277965 | R31: 216909 | S31: 170387 | T31: 143534 | U31: 491755 | V31: 1147608 | W31: 1390863 | X31: 1456359 | Y31: 1342159 | Z31: 1127227 | AA31: 887945 | AB31: 623093 | AC31: 307067 | AD31: 122725 | AE31: 45713 | AF31: 20616 | AG31: 11575 | AH31: 6506 | AI31: 3786 | AJ31: 1984 | AK31: NA | AL31: NA | AM31: NA | AN31: NA | AO31: NA | AP31: NA | AQ31: NA | AR31: NA | AS31: NA | AT31: NA | AU31: 195950 | AV31: 225778 | AW31: 249715 | AX31: 271954 | AY31: 347224 | AZ31: 391213 | BA31: 472831 | BB31: 634283 | BC31: 722409 | BD31: 734065 | BE31: 746627 | BF31: 752327 | BG31: 757809 | BH31: 743955 | BI31: 776836.1685 | BJ31: 818633.0649 | BK31: 860359.1562 | BL31: 907815.8265
C33: Nonreal estate | D33: 11136073 | E33: 11819926 | F33: 13176959 | G33: 14579582 | H33: 15306930 | I33: 16894897 | J33: 18527052 | K33: 19592588 | L33: 19192320 | M33: 20004960 | N33: 21262659 | O33: 23998571 | P33: 26720062 | Q33: 31580354 | R33: 35109684 | S33: 39752777 | T33: 45652689 | U33: 52569982 | V33: 60440998 | W33: 71742137 | X33: 77159601 | Y33: 83782208 | Z33: 87193913 | AA33: 88106779 | AB33: 87420023 | AC33: 78064559 | AD33: 67220161 | AE33: 62697543 | AF33: 62308927 | AG33: 62268982 | AH33: 63482823 | AI33: 64422903 | AJ33: 63686475 | AK33: 65878849 | AL33: 69017203 | AM33: 71262319 | AN33: 74150521 | AO33: 78393822 | AP33: 81526050 | AQ33: 80490057 | AR33: 79206060 | AS33: 82123435 | AT33: 88910829 | AU33: 83699555 | AV33: 93415679 | AW33: 95187185 | AX33: 102319434 | AY33: 109025002 | AZ33: 113161260 | BA33: 122366725 | BB33: 124865309 | BC33: 127281365 | BD33: 124152487 | BE33: 130171958 | BF33: 148421130 | BG33: 147968795 | BH33: 148183780 | BI33: 154989672 | BJ33: 159976095 | BK33: 151754403 | BL33: 152191680
C34: Farm Credit System | D34: 1509061 | E34: 1673393 | F34: 1868097 | G34: 2146954 | H34: 2311117 | I34: 2615293 | J34: 3051943 | K34: 3553601 | L34: 3852970 | M34: 4532871 | N34: 5303116 | O34: 6070545 | P34: 6591759 | Q34: 7827546 | R34: 9515860 | S34: 10680641 | T34: 12115639 | U34: 13338805 | V34: 14707824 | W34: 17842439 | X34: 19511718 | Y34: 21010020 | Z34: 20309620 | AA34: 19156137 | AB34: 17868609 | AC34: 13833717 | AD34: 10198209 | AE34: 9279862 | AF34: 8674622 | AG34: 9444862 | AH34: 9745477 | AI34: 10115291 | AJ34: 10237792 | AK34: 10429835 | AL34: 11063985 | AM34: 12342519 | AN34: 13877867 | AO34: 14844151 | AP34: 16382637 | AQ34: 15509734 | AR34: 16687385 | AS34: 20000000 | AT34: 20491000 | AU34: 20167247 | AV34: 22040316 | AW34: 24052920 | AX34: 26965061 | AY34: 31421824 | AZ34: 36023495 | BA34: 38986948 | BB34: 39230652 | BC34: 41085284 | BD34: 42679741 | BE34: 44015862 | BF34: 47887186 | BG34: 48283041 | BH34: 49376260 | BI34: 51180555 | BJ34: 75652929.74 | BK34: 77089686.21 | BL34: =BK34/$BK$33*$BL$33 -> 77311818.46
C35: Farm Service Agency | D35: 369168 | E35: 436551 | F35: 489448 | G35: 522531 | H35: 566642 | I35: 630978 | J35: 648961 | K35: 702280 | L35: 723062 | M35: 690893 | N35: 715373 | O35: 697695 | P35: 710248 | Q35: 802512 | R35: 960889 | S35: 1639435 | T35: 1745859 | U35: 2937219 | V35: 5433200 | W35: 8792794 | X35: 10827139 | Y35: 13716495 | Z35: 14008779 | AA35: 13877781 | AB35: 14832430 | AC35: 15884319 | AD35: 15572185 | AE35: 15246835 | AF35: 13925583 | AG35: 11705845 | AH35: 10119848 | AI35: 8865776 | AJ35: 7711693 | AK35: 6735161 | AL35: 6498477 | AM35: 5496596 | AN35: 4983948 | AO35: 4549888 | AP35: 4245007 | AQ35: 4263493 | AR35: 4208278 | AS35: 4150979 | AT35: 3973000 | AU35: 3646000 | AV35: 3244000 | AW35: 3008000 | AX35: 2734000 | AY35: 3117195 | AZ35: 2972189 | BA35: 3344724 | BB35: 3642459 | BC35: 3545409 | BD35: 3355025 | BE35: 2836595 | BF35: 3550210 | BG35: 3748543 | BH35: 3783890 | BI35: 3958398 | BJ35: 52827167.28 | BK35: 53830430.13 | BL35: =BK35/$BK$33*$BL$33 -> 53985541.34
C36: Commercial banks | D36: 4716945 | E36: 5023481 | F36: 5650609 | G36: 6286305 | H36: 6605571 | I36: 7254628 | J36: 8064148 | K36: 8761610 | L36: 9185089 | M36: 9761598 | N36: 10491171 | O36: 11810931 | P36: 13527275 | Q36: 16222596 | R36: 17234913 | S36: 19050762 | T36: 22001974 | U36: 24294841 | V36: 26717825 | W36: 29327405 | X36: 29985795 | Y36: 31214694 | Z36: 34322015 | AA36: 37075109 | AB36: 37618984 | AC36: 33737631 | AD36: 29678316 | AE36: 27588797 | AF36: 28308722 | AG36: 29243276 | AH36: 31267500 | AI36: 32854335 | AJ36: 32911989 | AK36: 34938855 | AL36: 36729740 | AM36: 37748207 | AN36: 38368022 | AO36: 41049702 | AP36: 42188408 | AQ36: 41351980 | AR36: 44854281 | AS36: 45025160 | AT36: 44752500 | AU36: 44479303 | AV36: 46544934 | AW36: 48650364 | AX36: 48372335 | AY36: 54001860 | AZ36: 56307741 | BA36: 57155563 | BB36: 56176988 | BC36: 59189718 | BD36: 59878041 | BE36: 63720321 | BF36: 70737959 | BG36: 73177901 | BH36: 73233553 | BI36: 73294843 | BJ36: 4085750.014 | BK36: 4163344.203 | BL36: =BK36/$BK$33*$BL$33 -> 4175340.788
C37: Individuals and others | D37: 4540901 | E37: 4686498 | F37: 5168802 | G37: 5623796 | H37: 5823604 | I37: 6393999 | J37: 6762001 | K37: 6575100 | L37: 5431198 | M37: 5019600 | N37: 4752999 | O37: 5419400 | P37: 5890780 | Q37: 6727700 | R37: 7398021 | S37: 8381940 | T37: 9789217 | U37: 11999118 | V37: 13582149 | W37: 15779499 | X37: 16834950 | Y37: 17840998 | Z37: 18553499 | AA37: 17997751 | AB37: 17100000 | AC37: 14608892 | AD37: 11771450 | AE37: 10582049 | AF37: 11400000 | AG37: 11874999 | AH37: 12349997 | AI37: 12587500 | AJ37: 12825001 | AK37: 13774998 | AL37: 14725001 | AM37: 15674997 | AN37: 16920683 | AO37: 17950081 | AP37: 18709998 | AQ37: 19364850 | AR37: 13456116 | AS37: 12947295 | AT37: 19694329 | AU37: 15407005 | AV37: 21586429 | AW37: 19475901 | AX37: 24248038 | AY37: 20484123 | AZ37: 17857835 | BA37: 22879490 | BB37: 25815210 | BC37: 23460955 | BD37: 18239680 | BE37: 19599180 | BF37: 26245776 | BG37: 22759310 | BH37: 21790077 | BI37: 26555877 | BJ37: 27410249 | BK37: 27930808.51 | BL37: =BK37/$BK$33*$BL$33 -> 28011290.53
C38: Year | D38: 1960 | E38: 1961 | F38: 1962 | G38: 1963 | H38: 1964 | I38: 1965 | J38: 1966 | K38: 1967 | L38: 1968 | M38: 1969 | N38: 1970 | O38: 1971 | P38: 1972 | Q38: 1973 | R38: 1974 | S38: 1975 | T38: 1976 | U38: 1977 | V38: 1978 | W38: 1979 | X38: 1980 | Y38: 1981 | Z38: 1982 | AA38: 1983 | AB38: 1984 | AC38: 1985 | AD38: 1986 | AE38: 1987 | AF38: 1988 | AG38: 1989 | AH38: 1990 | AI38: 1991 | AJ38: 1992 | AK38: 1993 | AL38: 1994 | AM38: 1995 | AN38: 1996 | AO38: 1997 | AP38: 1998 | AQ38: 1999 | AR38: 2000 | AS38: 2001 | AT38: 2002 | AU38: 2003 | AV38: 2004 | AW38: 2005 | AX38: 2006 | AY38: 2007 | AZ38: 2008 | BA38: 2009 | BB38: 2010 | BC38: 2011
C39: Equity | D39: =D14-D23 -> 151904472 | E39: =E14-E23 -> 157493415 | F39: 162205040 | G39: 167134394 | H39: 172081037 | I39: 185006838 | J39: 194799811 | K39: 203866586 | L39: 213239044 | M39: 221402007 | N39: 230322008 | O39: 248935513 | P39: 281833559 | Q39: 351725297 | R39: 374509083 | S39: 427282520 | T39: 496579252 | U39: 543103738 | V39: 653878781 | W39: 767162138 | X39: 837990159 | Y39: 820209991 | Z39: 778525420 | AA39: 773122345 | AB39: 708997897 | AC39: 603753369 | AD39: 570709437 | AE39: 617971250 | AF39: 655387313 | AG39: 682700656 | AH39: 709492710 | AI39: 712294769 | AJ39: 736197005 | AK39: 774863241 | AL39: 795795242 | AM39: 822755805 | AN39: 854343471 | AO39: 894373531 | AP39: 918728584 | AQ39: 971130770 | AR39: 1039284942 | AS39: 1085261963 | AT39: 1063501473 | AU39: 1141337841 | AV39: 1294375504 | AW39: 1500297692 | AX39: 1690980120 | AY39: 1721207215 | AZ39: 1744798785 | BA39: 1708566527 | BB39: 1891901551 | BC39: 2024248045 | BD39: 2340716076 | BE39: 2460777100 | BF39: 2604037113 | BG39: 2552915132 | BH39: 2582345250 | BI39: 2600006605 | BJ39: 2621909633 | BK39: 2650730378 | BL39: =BL14-BL23 -> 2675076114
C40: Real estate debt | D40: =D24 -> 11309593 | E40: =E24 -> 12318392 | F40: 13488450 | G40: 14981360 | H40: 16850311 | I40: 18915889 | J40: 20696043 | K40: 22613532 | L40: 24729257 | M40: 26415866 | N40: 27238348 | O40: 28826497 | P40: 31379625 | Q40: 35188298 | R40: 39563003 | S40: 43750962 | T40: 48484701 | U40: 55834463 | V40: 63424623 | W40: 75778090 | X40: 85272367 | Y40: 93905270 | Z40: 96769083 | AA40: 98071338 | AB40: 101393312 | AC40: 94089977 | AD40: 84087662 | AE40: 75809859 | AF40: 70829423 | AG40: 68761420 | AH40: 67632973 | AI40: 67449880 | AJ40: 67879337 | AK40: 68432731 | AL40: 69911852 | AM40: 71722937 | AN40: 74422235 | AO40: 78513555 | AP40: 83100263 | AQ40: 87206087 | AR40: 84723763 | AS40: 88541011 | AT40: 98118184 | AU40: 97396385 | AV40: 104161951 | AW40: 113886209 | AX40: 113365478 | AY40: 131710955 | AZ40: 147901855 | BA40: 145979853 | BB40: 154065225 | BC40: 167190768 | BD40: 173368636 | BE40: 185160530 | BF40: 196780224 | BG40: 208769246 | BH40: 225980433 | BI40: 238058397 | BJ40: 250866892 | BK40: 266840441 | BL40: =BL24 -> 281559130
C41: Nonreal estate debt | D41: =D33 -> 11136073 | E41: =E33 -> 11819926 | F41: 13176959 | G41: 14579582 | H41: 15306930 | I41: 16894897 | J41: 18527052 | K41: 19592588 | L41: 19192320 | M41: 20004960 | N41: 21262659 | O41: 23998571 | P41: 26720062 | Q41: 31580354 | R41: 35109684 | S41: 39752777 | T41: 45652689 | U41: 52569982 | V41: 60440998 | W41: 71742137 | X41: 77159601 | Y41: 83782208 | Z41: 87193913 | AA41: 88106779 | AB41: 87420023 | AC41: 78064559 | AD41: 67220161 | AE41: 62697543 | AF41: 62308927 | AG41: 62268982 | AH41: 63482823 | AI41: 64422903 | AJ41: 63686475 | AK41: 65878849 | AL41: 69017203 | AM41: 71262319 | AN41: 74150521 | AO41: 78393822 | AP41: 81526050 | AQ41: 80490057 | AR41: 79206060 | AS41: 82123435 | AT41: 88910829 | AU41: 83699555 | AV41: 93415679 | AW41: 95187185 | AX41: 102319434 | AY41: 109025002 | AZ41: 113161260 | BA41: 122366725 | BB41: 124865309 | BC41: 127281365 | BD41: 124152487 | BE41: 130171958 | BF41: 148421130 | BG41: 147968795 | BH41: 148183780 | BI41: 154989672 | BJ41: 159976095 | BK41: 151754403 | BL41: =BL33 -> 152191680
C42: Assets | D42: =D14 -> 174350138 | E42: =E14 -> 181631733 | F42: 188870449 | G42: 196695336 | H42: 204238278 | I42: 220817624 | J42: 234022906 | K42: 246072706 | L42: 257160621 | M42: 267822833 | N42: 278823015 | O42: 301760581 | P42: 339933247 | Q42: 418493949 | R42: 449181770 | S42: 510786259 | T42: 590716642 | U42: 651508183 | V42: 777744402 | W42: 914682365 | X42: 1000422127 | Y42: 997897469 | Z42: 962488416 | AA42: 959300462 | AB42: 897811233 | AC42: 775907905 | AD42: 722017259 | AE42: 756478652 | AF42: 788525662 | AG42: 813731058 | AH42: 840608505 | AI42: 844167552 | AJ42: 867762818 | AK42: 909174821 | AL42: 934724297 | AM42: 965741060 | AN42: 1002916227 | AO42: 1051280908 | AP42: 1083354897 | AQ42: 1138826915 | AR42: 1203214765 | AS42: 1255926409 | AT42: 1250530486 | AU42: 1322433781 | AV42: 1491953134 | AW42: 1709371086 | AX42: 1906665033 | AY42: 1961943172 | AZ42: 2005861900 | BA42: 1976913105 | BB42: 2170832085 | BC42: 2318720178 | BD42: 2638237199 | BE42: 2776109588 | BF42: 2949238467 | BG42: 2909653173 | BH42: 2956537719 | BI42: 2993054674 | BJ42: 3032752620 | BK42: 3075150919 | BL42: =BL14 -> 3108826924
C43: Ratio: | D43: 1960 | E43: 1961 | F43: 1962 | G43: 1963 | H43: 1964 | I43: 1965 | J43: 1966 | K43: 1967 | L43: 1968 | M43: 1969 | N43: 1970 | O43: 1971 | P43: 1972 | Q43: 1973 | R43: 1974 | S43: 1975 | T43: 1976 | U43: 1977 | V43: 1978 | W43: 1979 | X43: 1980 | Y43: 1981 | Z43: 1982 | AA43: 1983 | AB43: 1984 | AC43: 1985 | AD43: 1986 | AE43: 1987 | AF43: 1988 | AG43: 1989 | AH43: 1990 | AI43: 1991 | AJ43: 1992 | AK43: 1993 | AL43: 1994 | AM43: 1995 | AN43: 1996 | AO43: 1997 | AP43: 1998 | AQ43: 1999 | AR43: 2000 | AS43: 2001 | AT43: 2002 | AU43: 2003 | AV43: 2004 | AW43: 2005 | AX43: 2006 | AY43: 2007 | AZ43: 2008 | BA43: 2009 | BB43: 2010 | BC43: 2011 | BD43: 2012 | BE43: 2013 | BF43: 2014 | BG43: 2015 | BH43: 2016 | BI43: 2017
C44: Debt/equity | D44: =D23/D39 -> 0.1477617196 | E44: 0.1532655699 | F44: 0.1643932211 | G44: 0.1768692924 | H44: 0.1868726593 | I44: 0.1935646616 | J44: 0.2013507857 | K44: 0.2070281395 | L44: 0.2059734286 | M44: 0.2096675935 | N44: 0.2105791254 | O44: 0.2122038249 | P44: 0.2061489349 | Q44: 0.1898318164 | R44: 0.1993881868 | S44: 0.1954298037 | T44: 0.1895717343 | U44: 0.1996017288 | V44: 0.1894320853 | W44: 0.1922934145 | X44: 0.1938351737 | Y44: 0.2166365686 | Z44: 0.2362967108 | AA44: 0.2408132661 | AB44: 0.2663101496 | AC44: 0.2851404975 | AD44: 0.2651223411 | AE44: 0.2241324366 | AF44: 0.203144532 | AG44: 0.1919295094 | AH44: 0.1848021737 | AI44: 0.1851379355 | AJ44: 0.1787100628 | AK44: 0.1733358519 | AL44: 0.1745788963 | AM44: 0.1737882056 | AN44: 0.1739028401 | AO44: 0.1754383058 | AP44: 0.1791892795 | AQ44: 0.1726813218 | AR44: 0.1577332802 | AS44: 0.1572564522 | AT44: 0.1758615458 | AU44: 0.1586698815 | AV44: 0.1526432086 | AW44: 0.1393546062 | AX44: 0.1275502358 | AY44: 0.139864599 | AZ44: 0.1496236226 | BA44: 0.1570594845 | BB44: 0.1474339581 | BC44: 0.1454723564 | BD44: 0.1271068824 | BE44: 0.1281434584 | BF44: 0.1325639148 | BG44: 0.1397375246 | BH44: 0.1448931788 | BI44: 0.1511719502 | BJ44: 0.1566960897 | BK44: 0.157916794 | BL44: 0.1621452219
C45: Debt/assets | D45: =D23/D14 -> 0.1287390206 | E45: 0.1328970307 | F45: 0.1411835951 | G45: 0.1502879662 | H45: 0.1574496285 | I45: 0.1621735863 | J45: 0.1676036576 | K45: 0.1715189006 | L45: 0.170794334 | M45: 0.1733266185 | N45: 0.1739490802 | O45: 0.1750562245 | P45: 0.1709149914 | Q45: 0.1595450834 | R45: 0.1662415797 | S45: 0.1634807858 | T45: 0.1593613305 | U45: 0.1663899976 | V45: 0.1592626327 | W45: 0.161280279 | X45: 0.16236343 | Y45: 0.1780618586 | Z45: 0.1911326858 | AA45: 0.1940769596 | AB45: 0.2103040473 | AC45: 0.2218749608 | AD45: 0.209562611 | AE45: 0.1830949249 | AF45: 0.1688446622 | AG45: 0.1610242115 | AH45: 0.1559772406 | AI45: 0.1562163609 | AJ45: 0.1516149462 | AK45: 0.1477291021 | AL45: 0.1486310514 | AM45: 0.1480575497 | AN45: 0.148140744 | AO45: 0.1492535209 | AP45: 0.1519597257 | AQ45: 0.1472534086 | AR45: 0.1362431943 | AS45: 0.1358872978 | AT45: 0.1495597389 | AU45: 0.136941405 | AV45: 0.1324288448 | AW45: 0.1223101266 | AX45: 0.1131215548 | AY45: 0.1227028185 | AZ45: 0.1301500941 | BA45: 0.1357401989 | BB45: 0.1284901471 | BC45: 0.1269977015 | BD45: 0.1127726965 | BE45: 0.1135879107 | BF45: 0.1170476236 | BG45: 0.1226050047 | BH45: 0.1265548583 | BI45: 0.1313200432 | BJ45: 0.1354686776 | BK45: 0.1361217235 | BL45: 0.1395223409
C46: Real estate value/equity | D46: =D15/D39 -> 0.8115633686 | E46: 0.8197004618 | F46: 0.8299031707 | G46: 0.8517292557 | H46: 0.8745059515 | I46: 0.8730738969 | J46: 0.8790221568 | K46: 0.8875539859 | L46: 0.8881523357 | M46: 0.8821486564 | N46: 0.878848195 | O46: 0.8739708504 | P46: 0.8622186579 | Q46: 0.8481056368 | R46: 0.895989556 | S46: 0.8976724182 | T46: 0.9193687275 | U46: 0.9377734977 | V46: 0.9203133157 | W46: 0.9203579687 | X46: 0.9341639619 | Y46: 0.957756963 | Z46: 0.96338955 | AA46: 0.9745184884 | AB46: 0.9333599123 | AC46: 0.9708987164 | AD46: 0.950410035 | AE46: 0.9121436491 | AF46: 0.8884993994 | AG46: 0.8790564631 | AH46: 0.8726646959 | AI46: 0.8771215011 | AJ46: 0.8704066651 | AK46: 0.8744483183 | AL46: 0.8848226439 | AM46: 0.9000136474 | AN46: 0.9007336243 | AO46: 0.9036815715 | AP46: 0.9147658804 | AQ46: 0.9133487295 | AR46: 0.9106527101 | AS46: 0.9179742034 | AT46: 0.9437776124 | AU46: 0.8904901244 | AV46: 0.8973915455 | AW46: 0.9149025339 | AX46: 0.9087281002 | AY46: 0.8999412479 | AZ46: 0.8989869958 | BA46: 0.9133714645 | BB46: 0.8774842418 | BC46: 0.8905539069 | BD46: 0.8859103 | BE46: 0.9147524642 | BF46: 0.915175285 | BG46: 0.9382854526 | BH46: 0.9462113681 | BI46: 0.9498034506 | BJ46: 0.9607601838 | BK46: 0.9604882994 | BL46: 0.9626561044
C47: Real estate value/assets | D47: =D15/D14 -> 0.7070834954 | E47: 0.7107647043 | F47: 0.7127344575 | G47: 0.7237245981 | H47: 0.7368153143 | I47: 0.7314843719 | J47: 0.7316948282 | K47: 0.735321702 | L47: 0.7364609491 | M47: 0.7292488128 | N47: 0.7259733598 | O47: 0.7209768131 | P47: 0.7148525634 | Q47: 0.7127945523 | R47: 0.7470388369 | S47: 0.7509202259 | T47: 0.7728569039 | U47: 0.7817373677 | V47: 0.7737417942 | W47: 0.7719223788 | X47: 0.7824898969 | Y47: 0.7872169781 | Z47: 0.7792543178 | AA47: 0.7853869031 | AB47: 0.7370705452 | AC47: 0.7554806018 | AD47: 0.7512396265 | AE47: 0.7451347761 | AF47: 0.7384810185 | AG47: 0.7375070892 | AH47: 0.7365488647 | AI47: 0.7401007721 | AJ47: 0.7384400054 | AK47: 0.7452668534 | AL47: 0.753310524 | AM47: 0.7667598321 | AN47: 0.7672982751 | AO47: 0.7688039152 | AP47: 0.7757583081 | AQ47: 0.7788550159 | AR47: 0.786582476 | AS47: 0.7932331694 | AT47: 0.8026264791 | AU47: 0.7685451556 | AV47: 0.7785510198 | AW47: 0.8030006891 | AX47: 0.8059313647 | AY47: 0.7895159203 | AZ47: 0.7819837537 | BA47: 0.7893902403 | BB47: 0.7647361624 | BC47: 0.7774556077 | BD47: 0.7860038066 | BE47: 0.8108476429 | BF47: 0.8080561927 | BG47: 0.8232469602 | BH47: 0.8264546792 | BI47: 0.8250752205 | BJ47: 0.8306072722 | BK47: 0.8279253864 | BL47: 0.8283440712
C48: Real estate debt to D | D48: =D24/D23 -> 0.5038653342 | E48: 0.5103252016 | F48: 0.5058407317 | G48: 0.5067957577 | H48: 0.5239974101 | I48: 0.5282176437 | J48: 0.5276494117 | K48: 0.5357879852 | L48: 0.5630320833 | M48: 0.5690520457 | N48: 0.5616037622 | O48: 0.5456973004 | P48: 0.5400997162 | Q48: 0.527018248 | R48: 0.5298189283 | S48: 0.5239401555 | T48: 0.5150419084 | U48: 0.5150569518 | V48: 0.5120437979 | W48: 0.5136793207 | X48: 0.524972812 | Y48: 0.5284855807 | Z48: 0.5260247175 | AA48: 0.5267608223 | AB48: 0.5370029159 | AC48: 0.5465436996 | AD48: 0.5557390285 | AE48: 0.5473343511 | AF48: 0.531998658 | AG48: 0.5247745481 | AH48: 0.5158262816 | AI48: 0.511476883 | AJ48: 0.5159344624 | AK48: 0.5095073038 | AL48: 0.5032198052 | AM48: 0.501610722 | AN48: 0.5009144139 | AO48: 0.5003815404 | AP48: 0.5047811707 | AQ48: 0.5200243989 | AR48: 0.5168294667 | AS48: 0.5188017368 | AT48: 0.5246147773 | AU48: 0.5378165021 | AV48: 0.5271950625 | AW48: 0.5447188034 | AX48: 0.5256068977 | AY48: 0.5471179156 | AZ48: 0.5665367741 | BA48: 0.5439974457 | BB48: 0.5523426309 | BC48: 0.567764312 | BD48: 0.5827103442 | BE48: 0.5871914156 | BF48: 0.5700447629 | BG48: 0.5852172239 | BH48: 0.603960576 | BI48: 0.6056724756 | BJ48: 0.6106150036 | BK48: 0.6374671009 | BL48: 0.649126465
C49: E/A | D49: =D39/D42 -> 0.8712609794 | E49: =E39/E42 -> 0.8671029693 | F49: 0.8588164049 | G49: 0.8497120338 | H49: 0.8425503715 | I49: 0.8378264137 | J49: 0.8323963424 | K49: 0.8284810994 | L49: 0.829205666 | M49: 0.8266733815 | N49: 0.8260509198 | O49: 0.8249437755 | P49: 0.8290850086 | Q49: 0.8404549166 | R49: 0.8337584203 | S49: 0.8365192142 | T49: 0.8406386695 | U49: 0.8336100024 | V49: 0.8407373673 | W49: 0.838719721 | X49: 0.83763657 | Y49: 0.8219381414 | Z49: 0.8088673142 | AA49: 0.8059230404 | AB49: 0.7896959527 | AC49: 0.7781250392 | AD49: 0.790437389 | AE49: 0.8169050751 | AF49: 0.8311553378 | AG49: 0.8389757885 | AH49: 0.8440227594 | AI49: 0.8437836391 | AJ49: 0.8483850538 | AK49: 0.8522708979 | AL49: 0.8513689486 | AM49: 0.8519424503 | AN49: 0.851859256 | AO49: 0.8507464791 | AP49: 0.8480402743 | AQ49: 0.8527465914 | AR49: 0.8637568057 | AS49: 0.8641127022 | AT49: 0.8504402611 | AU49: 0.863058595 | AV49: 0.8675711552 | AW49: 0.8776898734 | AX49: 0.8868784452 | AY49: 0.8772971815 | AZ49: 0.8698499059 | BA49: 0.8642598011 | BB49: 0.8715098529 | BC49: 0.8730022985 | BD49: 0.8872273035 | BE49: 0.8864120893 | BF49: 0.8829523764 | BG49: 0.8773949953 | BH49: 0.8734355843 | BI49: 0.8686799568 | BJ49: 0.8645313224 | BK49: 0.8619838336 | BL49: 0.8604776591
C52: Lender Shares of Debt through time:
C53: Real estate | D53: Lender Shares
C54: Year | D54: 1960 | E54: 1961 | F54: 1962 | G54: 1963 | H54: 1964 | I54: 1965 | J54: 1966 | K54: 1967 | L54: 1968 | M54: 1969 | N54: 1970 | O54: 1971 | P54: 1972 | Q54: 1973 | R54: 1974 | S54: 1975 | T54: 1976 | U54: 1977 | V54: 1978 | W54: 1979 | X54: 1980 | Y54: 1981 | Z54: 1982 | AA54: 1983 | AB54: 1984 | AC54: 1985 | AD54: 1986 | AE54: 1987 | AF54: 1988 | AG54: 1989 | AH54: 1990 | AI54: 1991 | AJ54: 1992 | AK54: 1993 | AL54: 1994 | AM54: 1995 | AN54: 1996 | AO54: 1997 | AP54: 1998 | AQ54: 1999 | AR54: 2000 | AS54: 2001 | AT54: 2002 | AU54: 2003 | AV54: 2004 | AW54: 2005 | AX54: 2006 | AY54: 2007 | AZ54: 2008 | BA54: 2009 | BB54: 2010 | BC54: 2011 | BD54: 2012 | BE54: 2013 | BF54: 2014 | BG54: 2015 | BH54: 2016 | BI54: 2017 | BJ54: 2018 | BK54: 2019 | BL54: 2020(p)
C55: Farm Credit System | D55: =D25/D$24 -> 0.1964969915 | E55: 0.1999053123 | F55: 0.197721977 | G55: 0.1939271869 | H55: 0.1938629501 | I55: 0.1991141416 | J55: 0.2120647411 | K55: 0.2198213441 | L55: 0.2197300954 | M55: 0.2262581132 | N55: 0.2338218896 | O55: 0.2428384205 | P55: 0.2553937149 | Q55: 0.2732966511 | R55: 0.2992572884 | S55: 0.3209915247 | T55: 0.3346035278 | U55: 0.3361986843 | V55: 0.3400390728 | W55: 0.342707846 | X55: 0.3702908587 | Y55: 0.407790436 | Z55: 0.4287861961 | AA55: 0.4295269531 | AB55: 0.4365779569 | AC55: 0.4212822265 | AD55: 0.3936494393 | AE55: 0.3719100836 | AF55: 0.3654605516 | AG55: 0.3539894028 | AH55: 0.3468968309 | AI55: 0.3376547297 | AJ55: 0.3368741212 | AK55: 0.3274692924 | AL55: 0.3166421053 | AM55: 0.3134350731 | AN55: 0.3150967181 | AO55: 0.3174569156 | AP55: 0.3223527584 | AQ55: 0.3215916683 | AR55: 0.3504571203 | AS55: 0.3710674481 | AT55: 0.3854062974 | AU55: 0.3409470588 | AV55: 0.3559633402 | AW55: 0.4203068696 | AX55: 0.4383502798 | AY55: 0.4390200648 | AZ55: 0.4248603373 | BA55: 0.4731779323 | BB55: 0.4704405423 | BC55: 0.4503089429 | BD55: 0.463427266 | BE55: 0.4604151976 | BF55: 0.4512522458 | BG55: 0.4630114581 | BH55: 0.4591084972 | BI55: 0.4522158611 | BJ55: 0.4522158611 | BK55: 0.4468152562 | BL55: 0.4468152562
C56: Farm Service Agency | D56: 0.05516511514 | E56: 0.06673476538 | F56: 0.06829205728 | G56: 0.06838471274 | H56: 0.06679146753 | I56: 0.06949379963 | J56: 0.07092094851 | K56: 0.07235437613 | L56: 0.0737944937 | M56: 0.07680187354 | N56: 0.07963008623 | O56: 0.08046267294 | P56: 0.07984544111 | Q56: 0.07540881915 | R56: 0.07131301433 | S56: 0.06735383327 | T56: 0.06578582386 | U56: 0.06200842301 | V56: 0.05630967645 | W56: 0.07874483244 | X56: 0.08320163084 | Y56: 0.08227779974 | Z56: 0.08187259561 | AA56: 0.08347795765 | AB56: 0.08922125949 | AC56: 0.09811517969 | AD56: 0.1074257719 | AE56: 0.1144399701 | AF56: 0.115369696 | AG56: 0.1079661967 | AH56: 0.1022241917 | AI56: 0.09394765417 | AJ56: 0.0847828994 | AK56: 0.07677096797 | AL56: 0.07035367909 | AM56: 0.06375603386 | AN56: 0.05758187724 | AO56: 0.05122650477 | AP56: 0.04545430861 | AQ56: 0.04109453965 | AR56: 0.04034550496 | AS56: 0.03780591572 | AT56: 0.03242008637 | AU56: 0.02236222628 | AV56: 0.02300264134 | AW56: 0.02153904341 | AX56: 0.02094111931 | AY56: 0.01940496142 | AZ56: 0.01666644411 | BA56: 0.0180665273 | BB56: 0.02255821844 | BC56: 0.01994424716 | BD56: 0.02159120638 | BE56: 0.02007487233 | BF56: 0.02198233599 | BG56: 0.02326860921 | BH56: 0.02617268195 | BI56: 0.02543114243 | BJ56: 0.02543114243 | BK56: 0.02512743005 | BL56: 0.02512743005
C57: Commercial banks | D57: =D28/D$24 -> 0.1198746056 | E57: 0.1137884717 | F57: 0.1191343705 | G57: 0.123094699 | H57: 0.1240363457 | I57: 0.1194712551 | J57: 0.1168425771 | K57: 0.1183602367 | L57: 0.1180214189 | M57: 0.1179574048 | N57: 0.1223989428 | O57: 0.1289179882 | P57: 0.1340872939 | Q57: 0.1356882052 | R57: 0.1315427193 | S57: 0.1251622993 | T57: 0.1213594367 | U57: 0.1206168312 | V57: 0.1164938734 | W57: 0.098486647 | X57: 0.08713779459 | Y57: 0.07723510086 | Z57: 0.07480659913 | AA57: 0.08136619896 | AB57: 0.09019390746 | AC57: 0.1072161597 | AD57: 0.1320799953 | AE57: 0.1643338764 | AF57: 0.1854406466 | AG57: 0.2064437296 | AH57: 0.2179522258 | AI57: 0.2323929116 | AJ57: 0.248693752 | AK57: 0.2576997987 | AL57: 0.2713593398 | AM57: 0.28096065 | AN57: 0.2850451213 | AO57: 0.2956877701 | AP57: 0.3031660682 | AQ57: 0.3162490137 | AR57: 0.3512234578 | AS57: 0.3510475163 | AT57: 0.3100544543 | AU57: 0.3283489423 | AV57: 0.3349716923 | AW57: 0.3263481885 | AX57: 0.3303919205 | AY57: 0.311757492 | AZ57: 0.3136911704 | BA57: 0.3030846181 | BB57: 0.3325072676 | BC57: 0.3166815586 | BD57: 0.3723827705 | BE57: 0.3721264678 | BF57: 0.3722638409 | BG57: 0.3791928003 | BH57: 0.373561157 | BI57: 0.3078859806 | BJ57: 0.3078859806 | BK57: 0.3042090407 | BL57: 0.3042090407
C58: Life insurance co. | D58: 0.2344546793 | E58: 0.2295877579 | F58: 0.225628964 | G58: 0.2273093364 | H58: 0.2294174867 | I58: 0.2293979416 | J58: 0.2284380159 | K58: 0.2226138756 | L58: 0.2117174002 | M58: 0.1976886164 | N58: 0.1849893393 | O58: 0.172789604 | P58: 0.1604848688 | Q58: 0.1507345141 | R58: 0.1410882789 | S58: 0.1357406724 | T58: 0.1343092123 | U58: 0.1385379134 | V58: 0.1444298534 | W58: 0.1406000996 | X58: 0.132953985 | Y58: 0.1222752142 | Z58: 0.1154468726 | AA58: 0.112329272 | AB58: 0.1114131867 | AC58: 0.1126190625 | AD58: 0.1147691679 | AE58: 0.1135291255 | AF58: 0.1161359877 | AG58: 0.1199419238 | AH58: 0.1298493118 | AI58: 0.1273719835 | AJ58: 0.1162137898 | AK58: 0.118173612 | AL58: 0.1161837767 | AM58: 0.114671559 | AN58: 0.1159491784 | AO58: 0.1136231317 | AP58: 0.1196582134 | AQ58: 0.1219407769 | AR58: 0.1304628077 | AS58: 0.1265559414 | AT58: 0.1164004421 | AU58: 0.1029401656 | AV58: 0.1029742617 | AW58: 0.09928331182 | AX58: 0.1058611511 | AY58: 0.08204483067 | AZ58: 0.09288068767 | BA58: 0.09104802976 | BB58: 0.08072456974 | BC58: 0.07777788305 | BD58: 0.06626048555 | BE58: 0.06468493582 | BF58: 0.06303374774 | BG58: 0.0600064293 | BH58: 0.05843037304 | BI58: 0.05791736048 | BJ58: 0.05791736048 | BK58: 0.05722568023 | BL58: 0.05722568023
C59: Individuals and others | D59: 0.3898058047 | E59: 0.3843814193 | F59: 0.3837487628 | G59: 0.3832830264 | H59: 0.3832918573 | I59: 0.3807301364 | J59: 0.3701650601 | K59: 0.3641589912 | L59: 0.3707809741 | M59: 0.3748580115 | N59: 0.3737895191 | O59: 0.3684078575 | P59: 0.3617069356 | Q59: 0.3569724515 | R59: 0.3513160768 | S59: 0.346857196 | T59: 0.3409816016 | U59: 0.333830774 | V59: 0.3246334787 | W59: 0.3211061535 | X59: 0.3093368219 | Y59: 0.2961287583 | Z59: 0.287439109 | AA59: 0.2842455458 | AB59: 0.2664483926 | AC59: 0.2575038359 | AD59: 0.2506161368 | AE59: 0.2351839488 | AF59: 0.2173020526 | AG59: 0.2114904113 | AH59: 0.2029812293 | AI59: 0.2085765757 | AJ59: 0.2134061946 | AK59: 0.2198863436 | AL59: 0.2254610992 | AM59: 0.2271766701 | AN59: 0.2263271051 | AO59: 0.2220056906 | AP59: 0.2093686635 | AQ59: 0.199124013 | AR59: 0.1275111093 | AS59: 0.1135231672 | AT59: 0.1523993249 | AU59: 0.1939870458 | AV59: 0.1726429356 | AW59: 0.1235656549 | AX59: 0.08922845101 | AY59: 0.1236514305 | AZ59: 0.132845129 | BA59: 0.09720948274 | BB59: 0.06628185562 | BC59: 0.1084164288 | BD59: =BD30/BD$24 -> 0.05011899038 | BE59: 0.05446217939 | BF59: 0.06361374505 | BG59: 0.04769032408 | BH59: 0.05528888866 | BI59: 0.05480345801 | BJ59: 0.05480345801 | BK59: 0.05414896565 | BL59: 0.05414896565
C60: CCC storage & drying loans | D60: 0.004202007977 | E60: 0.005601867516 | F60: 0.005473497696 | G60: 0.004000437877 | H60: 0.002599892667 | I60: 0.001792937144 | J60: 0.001568222486 | K60: 0.00269086669 | L60: 0.005955536796 | M60: 0.006436131982 | N60: 0.005370222893 | O60: 0.00658345688 | P60: 0.008481745719 | Q60: 0.007899359043 | R60: 0.005482622237 | S60: 0.003894474366 | T60: 0.002960397755 | U60: 0.008807374041 | V60: 0.01809404527 | W60: 0.01835442144 | X60: 0.01707890904 | Y60: 0.01429269092 | Z60: 0.01164862749 | AA60: 0.009054072455 | AB60: 0.006145306704 | AC60: 0.003263546339 | AD60: 0.001459488789 | AE60: 0.0006029954494 | AF60: 0.0002910654799 | AG60: 0.0001683356743 | AH60: 9.619568254e-05 | AI60: 5.613056687e-05 | AJ60: 2.922833498e-05 | AU60: 0.002011881652 | AV60: 0.002167566927 | AW60: 0.002192671107 | AX60: 0.002398913715 | AY60: 0.002636257554 | AZ60: 0.002645085148 | BA60: =BA30/BA$24 -> 0.09720948274 | BB60: 0.004116977079 | BC60: 0.004320866568 | BD60: 0.004234128023 | BE60: 0.004032322655
C61: Total | D61: =SUM(D55:D60) -> 0.9999992042 | E61: 0.9999995941 | F61: 0.9999996293 | G61: 0.9999993993 | H61: 1 | I61: 1.000000211 | J61: 0.9999995651 | K61: 0.9999996905 | L61: 0.9999999191 | M61: 1.000000151 | N61: 1 | O61: 1 | P61: 1 | Q61: 1 | R61: 1 | S61: 1 | T61: 1 | U61: 1 | V61: 1 | W61: 1 | X61: 1 | Y61: 1 | Z61: 1 | AA61: 1 | AB61: 1.00000001 | AC61: 1.000000011 | AD61: 1 | AE61: 1 | AF61: 1 | AG61: 1 | AH61: 0.9999999852 | AI61: 0.9999999852 | AJ61: 0.9999999853 | AU61: 0.9905973204 | AV61: 0.9917224381 | AW61: 0.9932357394 | AX61: 0.9871718355 | AY61: 0.978515037 | AZ61: 0.9835888536 | BA61: 1.079796073 | BB61: 0.9766294308 | BC61: 0.9774499271 | BD61: 0.9780148469 | BE61: 0.9757959755
C62: Total Real Estate Debt | D62: =D40 -> 11309593 | E62: =E40 -> 12318392 | F62: 13488450 | G62: 14981360 | H62: 16850311 | I62: 18915889 | J62: 20696043 | K62: 22613532 | L62: 24729257 | M62: 26415866 | N62: 27238348 | O62: 28826497 | P62: 31379625 | Q62: 35188298 | R62: 39563003 | S62: 43750962 | T62: 48484701 | U62: 55834463 | V62: 63424623 | W62: 75778090 | X62: 85272367 | Y62: 93905270 | Z62: 96769083 | AA62: 98071338 | AB62: 101393312 | AC62: 94089977 | AD62: 84087662 | AE62: 75809859 | AF62: 70829423 | AG62: 68761420 | AH62: 67632973 | AI62: 67449880 | AJ62: 67879337 | AK62: 68432731 | AL62: 69911852 | AM62: 71722937 | AN62: 74422235 | AO62: 78513555 | AP62: 83100263 | AQ62: 87206087 | AR62: 84723763 | AS62: 88541011 | AT62: 98118184 | AU62: 97396385 | AV62: 104161951 | AW62: 113886209 | AX62: 113365478 | AY62: 131710955 | AZ62: 147901855 | BA62: 145979853 | BB62: 154065225 | BC62: 167190768 | BD62: 173368636 | BE62: =BE40 -> 185160530 | BF62: =BF40 -> 196780224 | BG62: =BG40 -> 208769246 | BH62: =BH40 -> 225980433 | BI62: =BI40 -> 238058397 | BJ62: =BJ40 -> 250866892 | BK62: 266840441 | BL62: 281559130
C65: Nonrealestate
C66: Farm Credit System | D66: =D34/D$33 -> 0.1355110549 | E66: 0.1415738982 | F66: 0.1417699638 | G66: 0.1472575826 | H66: 0.1509850114 | I66: 0.1547978067 | J66: 0.1647290136 | K66: 0.1813747627 | L66: 0.2007558232 | M66: 0.2265873563 | N66: 0.2494098222 | O66: 0.2529544363 | P66: 0.2466969949 | Q66: 0.2478612494 | R66: 0.2710323454 | S66: 0.2686766009 | T66: 0.2653871933 | U66: 0.2537342509 | V66: 0.2433418455 | W66: 0.248702363 | X66: 0.2528747913 | Y66: 0.2507694712 | Z66: 0.2329247456 | AA66: 0.2174195586 | AB66: 0.2043995001 | AC66: 0.1772086742 | AD66: 0.1517135462 | AE66: 0.1480099786 | AF66: 0.1392195696 | AG66: 0.1516784392 | AH66: 0.1535136048 | AI66: 0.1570138961 | AJ66: 0.1607530013 | AK66: 0.1583184157 | AL66: 0.160307641 | AM66: 0.1731983911 | AN66: 0.1871580511 | AO66: 0.189353582 | AP66: 0.200949721 | AQ66: 0.1926913035 | AR66: 0.2106831851 | AS66: 0.2435358433 | AT66: 0.2304668647 | AU66: 0.2409480791 | AV66: 0.2359380806 | AW66: 0.2526907377 | AX66: 0.2635380196 | AY66: 0.2882075068 | AZ66: 0.3183376979 | BA66: 0.3186074319 | BB66: 0.3141837578 | BC66: 0.3227910386 | BD66: 0.3437687156 | BE66: 0.3381362828 | BF66: 0.3226439928 | BG66: 0.3263055633 | BH66: 0.3332096131 | BI66: 0.3302191323 | BJ66: 0.4729014653 | BK66: 0.5079897827 | BL66: 0.5079897827
C67: Farm Service Agency | D67: 0.03315064476 | E67: 0.03693347996 | F67: 0.03714423032 | G67: 0.0358399164 | H67: 0.03701865756 | I67: 0.03734725343 | J67: 0.03502775293 | K67: 0.03584416719 | L67: 0.03767454899 | M67: 0.03453608505 | N67: 0.0336445691 | O67: 0.02907235602 | P67: 0.02658107605 | Q67: 0.02541174808 | R67: 0.02736820417 | S67: 0.04124076665 | T67: 0.03824219423 | U67: 0.05587255099 | V67: 0.08989262553 | W67: 0.1225610829 | X67: 0.1403213451 | Y67: 0.163716084 | Z67: 0.1606623504 | AA67: 0.1575109334 | AB67: 0.1696685667 | AC67: 0.2034767019 | AD67: 0.2316594422 | AE67: 0.2431807415 | AF67: 0.2234925824 | AG67: 0.1879883792 | AH67: 0.1594108063 | AI67: 0.1376183871 | AJ67: 0.1210883944 | AK67: 0.1022355597 | AL67: 0.09415735089 | AM67: 0.07713187105 | AN67: 0.06721393097 | AO67: 0.05803885924 | AP67: 0.05206933244 | AQ67: 0.05296918848 | AR67: 0.05313075792 | AS67: 0.05054560857 | AT67: 0.04468522051 | AU67: 0.04356056612 | AV67: 0.03472650453 | AW67: 0.03160089249 | AX67: 0.02672024163 | AY67: 0.02859156104 | AZ67: 0.02626507517 | BA67: 0.02733360724 | BB67: 0.02917110468 | BC67: 0.02785489455 | BD67: 0.02702342161 | BE67: 0.02179113723 | BF67: 0.02391984214 | BG67: 0.02533333464 | BH67: 0.02553511592 | BI67: 0.02553975338 | BJ67: 0.3302191323 | BK67: 0.3547207136 | BL67: 0.3547207136
C68: Commercial banks | D68: 0.4235734626 | E68: 0.4250010533 | F68: 0.4288249664 | G68: 0.4311718265 | H68: 0.4315412039 | I68: 0.4293975867 | J68: 0.4352634191 | K68: 0.4471900292 | L68: 0.4785814847 | M68: 0.4879588862 | N68: 0.4934082327 | O68: 0.4921514285 | P68: 0.5062591172 | Q68: 0.5136926584 | R68: 0.4908877277 | S68: 0.479230973 | T68: 0.4819425642 | U68: 0.4621428442 | V68: 0.4420480449 | W68: 0.4087891193 | X68: 0.3886203999 | Y68: 0.372569484 | Z68: 0.3936285667 | AA68: 0.4207974621 | AB68: 0.4303245722 | AC68: 0.4321760275 | AD68: 0.4415091478 | AE68: 0.4400299546 | AF68: 0.4543285106 | AG68: 0.4696282974 | AH68: 0.4925348074 | AI68: 0.5099791141 | AJ68: 0.5167814516 | AK68: 0.5303501128 | AL68: 0.5321823894 | AM68: 0.5297078109 | AN68: 0.5174342875 | AO68: 0.5236344007 | AP68: 0.5174837736 | AQ68: 0.513752649 | AR68: 0.5662986014 | AS68: 0.5482620156 | AT68: 0.5033413871 | AU68: 0.5314162423 | AV68: 0.4982561225 | AW68: 0.5111020354 | AX68: 0.4727580393 | AY68: 0.4953162945 | AZ68: 0.4975884945 | BA68: 0.467084193 | BB68: 0.4499006846 | BC68: 0.4650305094 | BD68: 0.4822943337 | BE68: 0.4895088157 | BF68: 0.4766030214 | BG68: 0.4945495501 | BH68: 0.4942076184 | BI68: 0.4729014653 | BJ68: 0.02553975338 | BK68: 0.02743475063 | BL68: 0.02743475063
C69: Individuals and others | D69: 0.4077650173 | E69: 0.3964913148 | F69: 0.3922606119 | G69: 0.3857309489 | H69: 0.3804553885 | I69: 0.3784574123 | J69: 0.3649798684 | K69: 0.335591194 | L69: 0.2829880911 | M69: 0.2509177724 | N69: 0.223537376 | O69: 0.2258217791 | P69: 0.2204628118 | Q69: 0.2130343441 | R69: 0.2107116942 | S69: 0.2108516847 | T69: 0.2144280483 | U69: 0.228250373 | V69: 0.224717484 | W69: 0.2199474348 | X69: 0.2181834766 | Y69: 0.2129449489 | Z69: 0.2127843374 | AA69: 0.2042720345 | AB69: 0.195607361 | AC69: 0.1871385964 | AD69: 0.1751178489 | AE69: 0.1687793252 | AF69: 0.1829593374 | AG69: 0.1907048842 | AH69: 0.1945407658 | AI69: 0.1953885872 | AJ69: 0.2013771527 | AK69: 0.2090959118 | AL69: 0.2133526188 | AM69: 0.2199619269 | AN69: 0.2281937169 | AO69: 0.2289731581 | AP69: 0.229497173 | AQ69: 0.2405868591 | AR69: 0.1698874556 | AS69: 0.1576565203 | AT69: 0.2215065276 | AU69: 0.1840751125 | AV69: 0.2310792924 | AW69: 0.2046063344 | AX69: 0.2369836995 | AY69: 0.1878846377 | AZ69: 0.1578087324 | BA69: 0.1869747679 | BB69: 0.2067444529 | BC69: 0.1843235654 | BD69: 0.146913529 | BE69: 0.1505637643 | BF69: 0.1768331504 | BG69: 0.153811552 | BH69: 0.1470476526 | BI69: 0.1713396555 | BJ69: 0.1713396555 | BK69: 0.184052706 | BL69: 0.184052706
C70: Total NonReal Estate Debt | D70: =D41 -> 11136073 | E70: 11819926 | F70: 13176959 | G70: 14579582 | H70: 15306930 | I70: 16894897 | J70: 18527052 | K70: 19592588 | L70: 19192320 | M70: 20004960 | N70: 21262659 | O70: 23998571 | P70: 26720062 | Q70: 31580354 | R70: 35109684 | S70: 39752777 | T70: 45652689 | U70: 52569982 | V70: 60440998 | W70: 71742137 | X70: 77159601 | Y70: 83782208 | Z70: 87193913 | AA70: 88106779 | AB70: 87420023 | AC70: 78064559 | AD70: 67220161 | AE70: 62697543 | AF70: 62308927 | AG70: 62268982 | AH70: 63482823 | AI70: 64422903 | AJ70: 63686475 | AK70: 65878849 | AL70: 69017203 | AM70: 71262319 | AN70: 74150521 | AO70: 78393822 | AP70: 81526050 | AQ70: 80490057 | AR70: 79206060 | AS70: 82123435 | AT70: 88910829 | AU70: 83699555 | AV70: 93415679 | AW70: 95187185 | AX70: 102319434 | AY70: 109025002 | AZ70: 113161260 | BA70: 122366725 | BB70: 124865309 | BC70: 127281365 | BD70: 124152487 | BE70: 130171958 | BF70: 148421130 | BG70: 147968795 | BH70: 148183780 | BI70: 154989672 | BJ70: 159976095 | BK70: 151754403 | BL70: 152191680
B77: Source: USDA - ERS, various years
C96: FCS Ag Debt Volume
D97: =D7 -> 1960 | E97: 1961 | F97: 1962 | G97: 1963 | H97: 1964 | I97: 1965 | J97: 1966 | K97: 1967 | L97: 1968 | M97: 1969 | N97: 1970 | O97: 1971 | P97: 1972 | Q97: 1973 | R97: 1974 | S97: 1975 | T97: 1976 | U97: 1977 | V97: 1978 | W97: 1979 | X97: 1980 | Y97: 1981 | Z97: 1982 | AA97: 1983 | AB97: 1984 | AC97: 1985 | AD97: 1986 | AE97: 1987 | AF97: 1988 | AG97: 1989 | AH97: 1990 | AI97: 1991 | AJ97: 1992 | AK97: 1993 | AL97: 1994 | AM97: 1995 | AN97: 1996 | AO97: 1997 | AP97: 1998 | AQ97: 1999 | AR97: 2000 | AS97: 2001 | AT97: 2002 | AU97: 2003 | AV97: 2004 | AW97: 2005 | AX97: 2006 | AY97: 2007 | AZ97: 2008 | BA97: 2009 | BB97: 2010 | BC97: 2011 | BD97: 2012 | BE97: 2013
C98: FCS Non Real Estate Debt | D98: =D34 -> 1509061 | E98: 1673393 | F98: 1868097 | G98: 2146954 | H98: 2311117 | I98: 2615293 | J98: 3051943 | K98: 3553601 | L98: 3852970 | M98: 4532871 | N98: 5303116 | O98: 6070545 | P98: 6591759 | Q98: 7827546 | R98: 9515860 | S98: 10680641 | T98: 12115639 | U98: 13338805 | V98: 14707824 | W98: 17842439 | X98: 19511718 | Y98: 21010020 | Z98: 20309620 | AA98: 19156137 | AB98: 17868609 | AC98: 13833717 | AD98: 10198209 | AE98: 9279862 | AF98: 8674622 | AG98: 9444862 | AH98: 9745477 | AI98: 10115291 | AJ98: 10237792 | AK98: 10429835 | AL98: 11063985 | AM98: 12342519 | AN98: 13877867 | AO98: 14844151 | AP98: 16382637 | AQ98: 15509734 | AR98: 16687385 | AS98: 20000000 | AT98: 20491000 | AU98: 20167247 | AV98: 22040316 | AW98: 24052920 | AX98: 26965061 | AY98: 31421824 | AZ98: 36023495 | BA98: =BA33 -> 122366725 | BB98: 39230652 | BC98: 41085284 | BD98: 42679741
C99: FCS Resl Estate Debt | D99: =D25 -> 2222301 | E99: 2462512 | F99: 2666963 | G99: 2905293 | H99: 3266651 | I99: 3766421 | J99: 4388901 | K99: 4970937 | L99: 5433762 | M99: 5976804 | N99: 6368922 | O99: 7000181 | P99: 8014159 | Q99: 9616844 | R99: 11839517 | S99: 14043688 | T99: 16223152 | U99: 18771473 | V99: 21566850 | W99: 25969746 | X99: 31575578 | Y99: 38293671 | Z99: 41493247 | AA99: 42124283 | AB99: 44266085 | AC99: 39638435 | AD99: 33101061 | AE99: 28194451 | AF99: 25885360 | AG99: 24340814 | AH99: 23461664 | AI99: 22774771 | AJ99: 22866792 | AK99: 22409618 | AL99: 22137036 | AM99: 22480484 | AN99: 23450202 | AO99: 24924671 | AP99: 26787599 | AQ99: 28044751 | AR99: 29692046 | AS99: 32854687 | AT99: 37815366 | AU99: 33207011 | AV99: 37077836 | AW99: 47867156 | AX99: 49693789 | AY99: 57823752 | AZ99: 62837632 | BA99: 69074445 | BB99: 72478528 | BC99: 75287498 | BD99: 80343753
C104: Sources/Notes:
C105: 1/ Excludes horses, mules, and broilers.
C106: 2/ Include only farm share value for trucks and autos.
C107: 3/ All non-CCC crops held on farms plus the value above loan rate
C108: for crops held under CCC.
C109: 4/ Excludes debt for nonfarm purposes.
C110: 5/ Farmers Home Administration prior to 1994.
C111: (f) forecasted and subject to revision
C112: Economic Research Service/USDA.
